Workbook

Sheet Conceptual Issue
B2: Exercise
C3: Develop Maintenance Schedule which has highest IRR
C4: Use the Alternative O&M agrrements
C7: BNDES Rules
C9: Level Repayment for 20 Years
C10: Maximum Debt Leverage of 80%
C11: Minimum DSCR of 1.2 x
C12: BNDES has Much lower Interest Rates than Private Banks
C14: PPA Agreements
C16: Indexed to Inflation
C17: Inflation is about 6%

Sheet O&M Agreement
A2: O&M Agreement
D3: Length of Agreemment | E3: 30 | K3: 2 | O3: Base Case
D4: Pct of Capital | E4: 0.05 | O4: Alternative 1
D5: Capital Expenditures | E5: ='Analysis of Maintenance'!G8 -> 1000 | O5: Alternative 2
D6: Growth | E6: ='Analysis of Maintenance'!G11 -> 0.06 | O6: Alternative 3
D7: O&M Discount Rate | E7: =G7/100 -> 0.09 | G7: 9 | O7: Alternative 4
L8: Scale | M8: 390 | O8: Alternative 5
A9: Pattern of Payment
F10: 1 | G10: 7 | H10: 15 | I10: 20 | J10: 30
D11: Alternative 1 | F11: 0 | G11: 0.6026637796 | H11: =G11*2 -> 1.205327559 | I11: =G11*3 -> 1.807991339 | J11: =G11*3.5 -> 2.109323229 | L11: Difference_1 | M11: =E23-E20 -> 2.614797268e-12
D12: Alternative 2 | F12: 0 | G12: 0.3245045925 | H12: =G12*4 -> 1.29801837 | I12: =G12*6 -> 1.947027555 | J12: =G12*7 -> 2.271532148 | L12: Difference_2 | M12: =E20-E26 -> -2.160049917e-12
D13: Alternative 3 | F13: 0.3 | G13: 0.7166335459 | H13: =G13*1.5 -> 1.074950319 | I13: =G13*2 -> 1.433267092 | J13: =G13*2.5 -> 1.791583865 | L13: Difference_3 | M13: =E20-E29 -> -2.898850653e-06
D14: Alternative 4 | F14: 0 | G14: 0.4892010037 | H14: =G14*2 -> 0.9784020075 | I14: =G14*3 -> 1.467603011 | J14: =G14*4 -> 1.956804015 | L14: Difference_4 | M14: =E20-E32 -> 0
D15: Alternative 5 | F15: 0 | G15: 0.2726897988 | H15: =G15*3 -> 0.8180693963 | I15: =G15*6 -> 1.636138793 | J15: =G15*7 -> 1.908828591 | L15: Difference_5 | M15: =E20-E35 -> 0
G18: 1 | H18: 2 | I18: 3 | J18: 4 | K18: 5 | L18: 6 | M18: 7 | N18: 8 | O18: 9 | P18: 10 | Q18: 11 | R18: 12 | S18: 13 | T18: 14 | U18: 15 | V18: 16 | W18: 17 | X18: 18 | Y18: 19 | Z18: 20 | AA18: 21 | AB18: 22 | AC18: 23 | AD18: 24 | AE18: 25 | AF18: 26 | AG18: 27 | AH18: 28 | AI18: 29 | AJ18: 30
C20: Base Case | E20: =NPV($E$7,F20:AJ20) -> 867.1353898 | F20: 0 | G20: =E5*E4 -> 50 | H20: =G20*(1+$E$6) -> 53 | I20: 56.18 | J20: 59.5508 | K20: 63.123848 | L20: 66.91127888 | M20: 70.92595561 | N20: 75.18151295 | O20: 79.69240373 | P20: 84.47394795 | Q20: 89.54238483 | R20: 94.91492792 | S20: 100.6098236 | T20: 106.646413 | U20: 113.0451978 | V20: 119.8279097 | W20: 127.0175842 | X20: 134.6386393 | Y20: 142.7169576 | Z20: 151.2799751 | AA20: 160.3567736 | AB20: 169.97818 | AC20: 180.1768708 | AD20: 190.9874831 | AE20: 202.4467321 | AF20: 214.593536 | AG20: 227.4691481 | AH20: 241.117297 | AI20: 255.5843349 | AJ20: 270.9193949
C22: Alternative Pattern - Pct of Base | G22: =interpolate_look_up(G18,10:10,11:11) -> 0 | H22: 0 | I22: 0 | J22: 0 | K22: 0 | L22: 0 | M22: 0.6026637796 | N22: 0.6572095118 | O22: 0.7166920546 | P22: 0.7815582275 | Q22: 0.8522952906 | R22: 0.929434605 | S22: 1.013555624 | T22: 1.105290245 | U22: 1.205327559 | V22: 1.307143713 | W22: 1.417560458 | X22: 1.5373043 | Y22: 1.667163117 | Z22: 1.807991339 | AA22: 1.836077568 | AB22: 1.864600102 | AC22: 1.893565719 | AD22: 1.922981302 | AE22: 1.952853842 | AF22: 1.983190436 | AG22: 2.013998294 | AH22: 2.045284737 | AI22: 2.077057198 | AJ22: 2.109323229
C23: Alternative Case 1 | E23: =NPV($E$7,F23:AJ23) -> 867.1353898 | F23: 0 | G23: =G22*G20 -> 0 | H23: =H22*H20 -> 0 | I23: 0 | J23: 0 | K23: 0 | L23: 0 | M23: 42.74450448 | N23: 49.41000542 | O23: 57.11491257 | P23: 66.02130903 | Q23: 76.3165529 | R23: 88.21721853 | S23: 101.9736525 | T23: 117.87524 | U23: 136.2564923 | V23: 156.6322987 | W23: 180.0551048 | X23: 206.9805592 | Y23: 237.932448 | Z23: 273.5128847 | AA23: 294.4274748 | AB23: 316.9413318 | AC23: 341.1767459 | AD23: 367.2653589 | AE23: 395.3488785 | AF23: 425.5798482 | AG23: 458.1224763 | AH23: 493.1535274 | AI23: 530.8632824 | AJ23: 571.4565728
C25: Alterantive Pattern - Case 2 | G25: =interpolate_look_up(G18,10:10,12:12) -> 0 | H25: 0 | I25: 0 | J25: 0 | K25: 0 | L25: 0 | M25: 0.3245045925 | N25: 0.3859031703 | O25: 0.4589187958 | P25: 0.5457494972 | Q25: 0.6490091851 | R25: 0.7718063406 | S25: 0.9178375917 | T25: 1.091498994 | U25: 1.29801837 | V25: 1.407664281 | W25: 1.526572176 | X25: 1.655524432 | Y25: 1.795369513 | Z25: 1.947027555 | AA25: 1.977273641 | AB25: 2.007989585 | AC25: 2.039182685 | AD25: 2.070860354 | AE25: 2.10303012 | AF25: 2.135699626 | AG25: 2.168876637 | AH25: 2.202569036 | AI25: 2.23678483 | AJ25: 2.271532148
C26: Alternative Case 2 | E26: =NPV($E$7,F26:AJ26) -> 867.1353898 | F26: 0 | G26: =G20*G25 -> 0 | H26: =H20*H25 -> 0 | I26: 0 | J26: 0 | K26: 0 | L26: 0 | M26: 23.01579833 | N26: 29.0127842 | O26: 36.57234196 | P26: 46.10161462 | Q26: 58.11383021 | R26: 73.25594319 | S26: 92.34347818 | T26: 116.4044526 | U26: 146.7347434 | V26: 168.6774683 | W26: 193.90151 | X26: 222.8975568 | Y26: 256.2296747 | Z26: 294.5462801 | AA26: 317.0692217 | AB26: 341.3144151 | AC26: 367.4135552 | AD26: 395.5084068 | AE26: 425.7515752 | AF26: 458.3073346 | AG26: 493.3525211 | AH26: 531.0774926 | AI26: 571.6871629 | AJ26: 615.4021151
C28: Alterantive Pattern - Case 3 | G28: =interpolate_look_up(G18,10:10,13:13) -> 0.3 | H28: 0.3468570834 | I28: 0.4010327876 | J28: 0.4636702101 | K28: 0.5360909891 | L28: 0.6198231896 | M28: 0.7166335459 | N28: 0.7538909695 | O28: 0.7930853883 | P28: 0.8343175054 | Q28: 0.87769326 | R28: 0.9233240985 | S28: 0.9713272618 | T28: 1.021826086 | U28: 1.074950319 | V28: 1.138613006 | W28: 1.206046041 | X28: 1.27747272 | Y28: 1.353129562 | Z28: 1.433267092 | AA28: 1.465609025 | AB28: 1.498680761 | AC28: 1.532498766 | AD28: 1.56707988 | AE28: 1.602441324 | AF28: 1.638600705 | AG28: 1.675576029 | AH28: 1.713385708 | AI28: 1.752048569 | AJ28: 1.791583865
C29: Alternative Case 3 | E29: =NPV($E$7,F29:AJ29) -> 867.1353927 | F29: 0 | G29: =G28*G20 -> 15 | H29: =H28*H20 -> 18.38342542 | I29: 22.53002201 | J29: 27.61193195 | K29: 33.84012611 | L29: 41.4731623 | M29: 50.82791906 | N29: 56.67866369 | O29: 63.20288095 | P29: 70.47809353 | Q29: 78.59074764 | R29: 87.63724026 | S29: 97.72506446 | T29: 108.9740868 | U29: 121.5179714 | V29: 136.4376164 | W29: 153.1890546 | X29: 171.9971888 | Y29: 193.1145343 | Z29: 216.82461 | AA29: 235.0203347 | AB29: 254.7430281 | AC29: 276.1208321 | AD29: 299.2926421 | AE29: 324.4090093 | AF29: 351.6331193 | AG29: 381.1418519 | AH29: 413.1269306 | AI29: 447.7961681 | AJ29: 485.3748166
C31: Alternative 4 - Up-front (Alt 1) | F31: 0.15 | G31: =interpolate_look_up(G18,10:10,14:14) -> 0 | H31: 0 | I31: 0 | J31: 0 | K31: 0 | L31: 0 | M31: 0.4892010037 | N31: 0.5334774774 | O31: 0.5817613143 | P31: 0.6344152118 | Q31: 0.6918346942 | R31: 0.7544510838 | S31: 0.8227347408 | T31: 0.8971985968 | U31: 0.9784020075 | V31: 1.061049358 | W31: 1.150678077 | X31: 1.247877892 | Y31: 1.353288348 | Z31: 1.467603011 | AA31: 1.510436486 | AB31: 1.554520099 | AC31: 1.599890336 | AD31: 1.64658475 | AE31: 1.694641987 | AF31: 1.744101823 | AG31: 1.795005195 | AH31: 1.847394233 | AI31: 1.901312297 | AJ31: 1.956804015
C32: Alternative 4 Payment | E32: =NPV($E$7,F32:AJ32) -> 867.1353898 | F32: =F31*E5 -> 150 | G32: =G31*G20 -> 0 | H32: =H31*H20 -> 0 | I32: 0 | J32: 0 | K32: 0 | L32: 0 | M32: 34.69704868 | N32: 40.10764388 | O32: 46.36195753 | P32: 53.59155758 | Q32: 61.94852843 | R32: 71.60867023 | S32: 82.77519713 | T32: 95.6830121 | U32: 110.6036485 | V32: 127.1433266 | W32: 146.1563495 | X32: 168.0125814 | Y32: 193.1371958 | Z32: 222.018947 | AA32: 242.2087216 | AB32: 264.2344972 | AC32: 288.2632345 | AD32: 314.4770771 | AE32: 343.0747323 | AF32: 374.2729774 | AG32: 408.3083026 | AH32: 445.4387039 | AI32: 485.9456388 | AJ32: 530.1361598
C34: Alternative 5 - Up-front (Alt 1) | F34: 0.2 | G34: =interpolate_look_up(G18,10:10,15:15) -> 0 | H34: 0 | I34: 0 | J34: 0 | K34: 0 | L34: 0 | M34: 0.2726897988 | N34: 0.3128304708 | O34: 0.3588799578 | P34: 0.4117080531 | Q34: 0.4723125862 | R34: 0.5418382696 | S34: 0.6215983207 | T34: 0.7130992658 | U34: 0.8180693963 | V34: 0.9397149698 | W34: 1.07944904 | X34: 1.239961337 | Y34: 1.424341548 | Z34: 1.636138793 | AA34: 1.661555379 | AB34: 1.6873668 | AC34: 1.713579187 | AD34: 1.740198771 | AE34: 1.767231877 | AF34: 1.794684928 | AG34: 1.822564449 | AH34: 1.850877063 | AI34: 1.8796295 | AJ34: 1.908828591
C35: Alternative 5 Payment | E35: =NPV($E$7,F35:AJ35) -> 867.1353898 | F35: =F34*E5 -> 200 | G35: =G34*G20 -> 0 | H35: 0 | I35: 0 | J35: 0 | K35: 0 | L35: 0 | M35: 19.34078456 | N35: 23.51906809 | O35: 28.60000648 | P35: 34.77860465 | Q35: 42.29199535 | R35: 51.4285403 | S35: 62.53889739 | T35: 76.04947882 | U35: 92.47881671 | V35: 112.6040805 | W35: 137.1090094 | X35: 166.9467071 | Y35: 203.2776923 | Z35: 247.5150358 | AA35: 266.4416598 | AB35: 286.8155376 | AC35: 308.7473359 | AD35: 332.3561834 | AE35: 357.7703183 | AF35: 385.1277847 | AG35: 414.5771826 | AH35: 446.2784747 | AI35: 480.4038556 | AJ35: 517.1386871
C37: =CHOOSE($K$3,C20,C23,C26,C29,C32,C35) -> Alternative Case 1 | E37: =CHOOSE($K$3,E20,E23,E26,E29,E32,E35) -> 867.1353898 | F37: 0 | G37: 0 | H37: 0 | I37: 0 | J37: 0 | K37: 0 | L37: 0 | M37: 42.74450448 | N37: 49.41000542 | O37: 57.11491257 | P37: 66.02130903 | Q37: 76.3165529 | R37: 88.21721853 | S37: 101.9736525 | T37: 117.87524 | U37: 136.2564923 | V37: 156.6322987 | W37: 180.0551048 | X37: 206.9805592 | Y37: 237.932448 | Z37: 273.5128847 | AA37: 294.4274748 | AB37: 316.9413318 | AC37: 341.1767459 | AD37: 367.2653589 | AE37: 395.3488785 | AF37: 425.5798482 | AG37: 458.1224763 | AH37: 493.1535274 | AI37: 530.8632824 | AJ37: 571.4565728

Sheet Analysis of Maintenance
A1: Sculpting and Grace Periods | E1: =E46 -> DSCR Constrained | H1: Sculting Test | I1: =F62 -> FALSE | K1: Project IRR | L1: =E108 -> 0.1083708241
C2: O&M Scenario | H2: Equial Installment | I2: =F68 -> FALSE | K2: Equity IRR | L2: =E111 -> 0.1897053745
C5: Period | H5: 1 | I5: 2 | J5: 3 | K5: 4 | L5: 5 | M5: 6 | N5: 7 | O5: 8 | P5: 9 | Q5: 10 | R5: 11 | S5: 12 | T5: 13 | U5: 14 | V5: 15 | W5: 16 | X5: 17 | Y5: 18 | Z5: 19 | AA5: 20 | AB5: 21 | AC5: 22 | AD5: 23 | AE5: 24 | AF5: 25 | AG5: 26 | AH5: 27 | AI5: 28 | AJ5: 29 | AK5: 30
C6: Repayment Switch | E6: =E34 -> 0 | F6: =E35 -> 20 | H6: =AND(H5>$E$6,H5<=$F$6) -> TRUE | I6: =AND(I5>$E$6,I5<=$F$6) -> TRUE | J6: TRUE | K6: TRUE | L6: TRUE | M6: TRUE | N6: TRUE | O6: TRUE | P6: TRUE | Q6: TRUE | R6: TRUE | S6: TRUE | T6: TRUE | U6: TRUE | V6: TRUE | W6: TRUE | X6: TRUE | Y6: TRUE | Z6: TRUE | AA6: TRUE | AB6: FALSE | AC6: FALSE | AD6: FALSE | AE6: FALSE | AF6: FALSE | AG6: FALSE | AH6: FALSE | AI6: FALSE | AJ6: FALSE | AK6: FALSE
A7: Operations
C8: Base Capital Expenditure | G8: 1000
C9: Add: Capitalised O&M | G9: ='O&M Agreement'!F37 -> 0
C10: Net Capital Expenditures | G10: =G8+G9 -> 1000
C11: Growth | E11: 21 | G11: =(E11-15)/100 -> 0.06
C12: Revenues | H12: 110.4007526 | I12: =H12*(1+$G$11) -> 117.0247978 | J12: =I12*(1+$G$11) -> 124.0462856 | K12: 131.4890628 | L12: 139.3784065 | M12: 147.7411109 | N12: 156.6055776 | O12: 166.0019122 | P12: 175.962027 | Q12: 186.5197486 | R12: 197.7109335 | S12: 209.5735895 | T12: 222.1480049 | U12: 235.4768852 | V12: 249.6054983 | W12: 264.5818282 | X12: 280.4567379 | Y12: 297.2841421 | Z12: 315.1211907 | AA12: 334.0284621 | AB12: 354.0701698 | AC12: 375.31438 | AD12: 397.8332428 | AE12: 421.7032374 | AF12: 447.0054316 | AG12: 473.8257575 | AH12: 502.255303 | AI12: 532.3906212 | AJ12: 564.3340585 | AK12: 598.194102
C13: Maintenance | H13: ='O&M Agreement'!G37 -> 0 | I13: ='O&M Agreement'!H37 -> 0 | J13: ='O&M Agreement'!I37 -> 0 | K13: ='O&M Agreement'!J37 -> 0 | L13: ='O&M Agreement'!K37 -> 0 | M13: ='O&M Agreement'!L37 -> 0 | N13: ='O&M Agreement'!M37 -> 42.74450448 | O13: ='O&M Agreement'!N37 -> 49.41000542 | P13: ='O&M Agreement'!O37 -> 57.11491257 | Q13: ='O&M Agreement'!P37 -> 66.02130903 | R13: ='O&M Agreement'!Q37 -> 76.3165529 | S13: ='O&M Agreement'!R37 -> 88.21721853 | T13: ='O&M Agreement'!S37 -> 101.9736525 | U13: ='O&M Agreement'!T37 -> 117.87524 | V13: ='O&M Agreement'!U37 -> 136.2564923 | W13: ='O&M Agreement'!V37 -> 156.6322987 | X13: ='O&M Agreement'!W37 -> 180.0551048 | Y13: ='O&M Agreement'!X37 -> 206.9805592 | Z13: ='O&M Agreement'!Y37 -> 237.932448 | AA13: ='O&M Agreement'!Z37 -> 273.5128847 | AB13: ='O&M Agreement'!AA37 -> 294.4274748 | AC13: ='O&M Agreement'!AB37 -> 316.9413318 | AD13: ='O&M Agreement'!AC37 -> 341.1767459 | AE13: ='O&M Agreement'!AD37 -> 367.2653589 | AF13: ='O&M Agreement'!AE37 -> 395.3488785 | AG13: ='O&M Agreement'!AF37 -> 425.5798482 | AH13: ='O&M Agreement'!AG37 -> 458.1224763 | AI13: ='O&M Agreement'!AH37 -> 493.1535274 | AJ13: ='O&M Agreement'!AI37 -> 530.8632824 | AK13: ='O&M Agreement'!AJ37 -> 571.4565728
C14: EBITDA | H14: =H12-H13 -> 110.4007526 | I14: 117.0247978 | J14: 124.0462856 | K14: 131.4890628 | L14: 139.3784065 | M14: 147.7411109 | N14: 113.8610731 | O14: 116.5919068 | P14: 118.8471144 | Q14: 120.4984396 | R14: 121.3943806 | S14: 121.356371 | T14: 120.1743524 | U14: 117.6016452 | V14: 113.349006 | W14: 107.9495294 | X14: 100.401633 | Y14: 90.30358299 | Z14: 77.18874267 | AA14: 60.5155774 | AB14: 59.64269501 | AC14: 58.37304827 | AD14: 56.65649689 | AE14: 54.43787847 | AF14: 51.65655316 | AG14: 48.2459093 | AH14: 44.13282665 | AI14: 39.23709383 | AJ14: 33.47077603 | AK14: 26.73752913
C15: Net Cash Flow | G15: =G14-G10 -> -1000 | H15: =H14-H10 -> 110.4007526 | I15: 117.0247978 | J15: 124.0462856 | K15: 131.4890628 | L15: 139.3784065 | M15: 147.7411109 | N15: 113.8610731 | O15: 116.5919068 | P15: 118.8471144 | Q15: 120.4984396 | R15: 121.3943806 | S15: 121.356371 | T15: 120.1743524 | U15: 117.6016452 | V15: 113.349006 | W15: 107.9495294 | X15: 100.401633 | Y15: 90.30358299 | Z15: 77.18874267 | AA15: 60.5155774 | AB15: 59.64269501 | AC15: 58.37304827 | AD15: 56.65649689 | AE15: 54.43787847 | AF15: 51.65655316 | AG15: 48.2459093 | AH15: 44.13282665 | AI15: 39.23709383 | AJ15: 33.47077603 | AK15: 26.73752913
C16: Project IRR | E16: =IRR(15:15) -> 0.1083708241
A18: Taxes
C19: Depreciation | E19: 30 | H19: =H5<=$E$19 -> TRUE | I19: =I5<=$E$19 -> TRUE | J19: TRUE | K19: TRUE | L19: TRUE | M19: TRUE | N19: TRUE | O19: TRUE | P19: TRUE | Q19: TRUE | R19: TRUE | S19: TRUE | T19: TRUE | U19: TRUE | V19: TRUE | W19: TRUE | X19: TRUE | Y19: TRUE | Z19: TRUE | AA19: TRUE | AB19: TRUE | AC19: TRUE | AD19: TRUE | AE19: TRUE | AF19: TRUE | AG19: TRUE | AH19: TRUE | AI19: TRUE | AJ19: TRUE | AK19: TRUE
C20: Tax Rate | E20: 0.3
C21: Depreciation Expense | H21: =$G$10/$E$19*H19 -> 33.33333333 | I21: 33.33333333 | J21: 33.33333333 | K21: 33.33333333 | L21: 33.33333333 | M21: 33.33333333 | N21: 33.33333333 | O21: 33.33333333 | P21: 33.33333333 | Q21: 33.33333333 | R21: 33.33333333 | S21: 33.33333333 | T21: 33.33333333 | U21: 33.33333333 | V21: 33.33333333 | W21: 33.33333333 | X21: 33.33333333 | Y21: 33.33333333 | Z21: 33.33333333 | AA21: 33.33333333 | AB21: 33.33333333 | AC21: 33.33333333 | AD21: 33.33333333 | AE21: 33.33333333 | AF21: 33.33333333 | AG21: 33.33333333 | AH21: 33.33333333 | AI21: 33.33333333 | AJ21: 33.33333333 | AK21: 33.33333333
A23: Financing Assumptions
C25: Max Debt to Capital | E25: =G25/100 -> 0.7 | G25: 70
C26: Target DSCR | E26: =G26/10 -> 1.2 | G26: 12
E27: 0 | F27: 1 | G27: 5 | H27: 10
C28: Flat | E28: 0.03 | F28: =E28 -> 0.03 | G28: =F28 -> 0.03 | H28: 0.03
C29: Increasing | E29: 0.05 | F29: =E29+0.25% -> 0.0525 | G29: =F29+0.25% -> 0.055 | H29: 0.0575
C30: Zero for Test | E30: 0 | F30: 0 | G30: 0 | H30: 0
C32: Interest Rate | E32: =E29 -> 0.05 | F32: =F29 -> 0.0525 | G32: 0.055 | H32: 0.0575
C34: Grace Period | E34: 0
C35: Tenor | E35: 20
C37: Sculpting | E37: FALSE
C38: Equal Instrallment | E38: =NOT(E37) -> TRUE
C39: Net Debt Life for Equal Installment | E39: =F6-E6 -> 20
A41: Debt Size
C42: Max Debt to Cap | E42: =E25*G10 -> 700
C43: DSCR Target | E43: =IF(E37,Comp_1,E70) -> 813.8044434 | F43: =IF(E37,C37,C38) -> Equal Instrallment
D44: Final | E44: =MIN(E42:E43) -> 700
D45: Debt to Cap Constraint | E45: =ROUND(E43-E42,0)=0 -> FALSE
D46: Method | E46: =IF(E45,"Gearing Constrained","DSCR Constrained") -> DSCR Constrained
C48: EBITDA | H48: =H15 -> 110.4007526 | I48: 117.0247978 | J48: 124.0462856 | K48: 131.4890628 | L48: 139.3784065 | M48: 147.7411109 | N48: 113.8610731 | O48: 116.5919068 | P48: 118.8471144 | Q48: 120.4984396 | R48: 121.3943806 | S48: 121.356371 | T48: 120.1743524 | U48: 117.6016452 | V48: 113.349006 | W48: 107.9495294 | X48: 100.401633 | Y48: 90.30358299 | Z48: 77.18874267 | AA48: 60.5155774 | AB48: 59.64269501 | AC48: 58.37304827 | AD48: 56.65649689 | AE48: 54.43787847 | AF48: 51.65655316 | AG48: 48.2459093 | AH48: 44.13282665 | AI48: 39.23709383 | AJ48: 33.47077603 | AK48: 26.73752913
C49: Less: Taxes | H49: =H92 -> 12.09522578 | I49: =I92 -> 14.63368933 | J49: 17.29138569 | K49: 20.07546883 | L49: 22.57352196 | M49: 25.65983328 | N49: 16.07332193 | O49: 17.47007204 | P49: 18.72413432 | Q49: 19.50828187 | R49: 20.38081418 | S49: 20.97316129 | T49: 21.22230571 | U49: 21.05424356 | V49: 20.38220179 | W49: 19.36610883 | X49: 17.70548991 | Y49: 15.2798249 | Z49: 11.9491228 | AA49: 7.550923221 | AB49: 7.892808504 | AC49: 7.511914482 | AD49: 6.996949068 | AE49: 6.331363541 | AF49: 5.496965948 | AG49: 4.47377279 | AH49: 3.239847996 | AI49: 1.771128148 | AJ49: 0.04123281038 | AK49: -1.97874126
D50: CFADS | H50: =H48-H49 -> 98.30552682 | I50: =I48-I49 -> 102.3911084 | J50: 106.7548999 | K50: 111.4135939 | L50: 116.8048846 | M50: 122.0812776 | N50: 97.78775117 | O50: 99.12183477 | P50: 100.1229801 | Q50: 100.9901577 | R50: 101.0135664 | S50: 100.3832097 | T50: 98.95204667 | U50: 96.54740164 | V50: 92.96680417 | W50: 88.58342061 | X50: 82.69614313 | Y50: 75.02375809 | Z50: 65.23961987 | AA50: 52.96465418 | AB50: 51.74988651 | AC50: 50.86113379 | AD50: 49.65954783 | AE50: 48.10651493 | AF50: 46.15958721 | AG50: 43.77213651 | AH50: 40.89297866 | AI50: 37.46596568 | AJ50: 33.42954322 | AK50: 28.71627039
C52: Cash Flow over Repayment Period | H52: =IF(H6,H50) -> 98.30552682 | I52: 102.3911084 | J52: 106.7548999 | K52: 111.4135939 | L52: 116.8048846 | M52: 122.0812776 | N52: 97.78775117 | O52: 99.12183477 | P52: 100.1229801 | Q52: 100.9901577 | R52: 101.0135664 | S52: 100.3832097 | T52: 98.95204667 | U52: 96.54740164 | V52: 92.96680417 | W52: 88.58342061 | X52: 82.69614313 | Y52: 75.02375809 | Z52: 65.23961987 | AA52: 52.96465418 | AB52: FALSE | AC52: FALSE | AD52: FALSE | AE52: FALSE | AF52: FALSE | AG52: FALSE | AH52: FALSE | AI52: FALSE | AJ52: FALSE | AK52: FALSE
C53: Interest Rate | H53: =LOOKUP(H5,27:27,32:32) -> 0.0525 | I53: 0.0525 | J53: 0.0525 | K53: 0.0525 | L53: 0.055 | M53: 0.055 | N53: 0.055 | O53: 0.055 | P53: 0.055 | Q53: 0.0575 | R53: 0.0575 | S53: 0.0575 | T53: 0.0575 | U53: 0.0575 | V53: 0.0575 | W53: 0.0575 | X53: 0.0575 | Y53: 0.0575 | Z53: 0.0575 | AA53: 0.0575 | AB53: 0.0575 | AC53: 0.0575 | AD53: 0.0575 | AE53: 0.0575 | AF53: 0.0575 | AG53: 0.0575 | AH53: 0.0575 | AI53: 0.0575 | AJ53: 0.0575 | AK53: 0.0575
C54: Interest Rate Index | G54: 1 | H54: =G54*(1+H53*H6) -> 1.0525 | I54: 1.10775625 | J54: 1.165913453 | K54: 1.227123909 | L54: 1.294615724 | M54: 1.365819589 | N54: 1.440939667 | O54: 1.520191348 | P54: 1.603801873 | Q54: 1.69602048 | R54: 1.793541658 | S54: 1.896670303 | T54: 2.005728846 | U54: 2.121058254 | V54: 2.243019104 | W54: 2.371992702 | X54: 2.508382283 | Y54: 2.652614264 | Z54: 2.805139584 | AA54: 2.96643511 | AB54: 2.96643511 | AC54: 2.96643511 | AD54: 2.96643511 | AE54: 2.96643511 | AF54: 2.96643511 | AG54: 2.96643511 | AH54: 2.96643511 | AI54: 2.96643511 | AJ54: 2.96643511 | AK54: 2.96643511
C55: NPV of Cash Flow over Repayment Period | F55: =SUMPRODUCT(H52:AK52/H54:AK54) -> 1188.092219
C56: Target DSCR | E56: =E26 -> 1.2
C57: LLCR Using Max Debt to Cap | E57: =F64 -> 1.703622341
C58: Target DSCR Applied | E58: =MAX(E57,E26) -> 1.703622341
C60: Target Debt Service | F60: =E58 -> 1.703622341 | H60: =IF(H6,H52/$F$60) -> 57.70382581 | I60: 60.10199911 | J60: 62.66347732 | K60: 65.39805874 | L60: 68.56266307 | M60: 71.6598243 | N60: 57.3998995 | O60: 58.18298597 | P60: 58.7706428 | Q60: 59.27966266 | R60: 59.29340323 | S60: 58.92339356 | T60: 58.08332297 | U60: 56.67183349 | V60: 54.57007808 | W60: 51.99709963 | X60: 48.54135869 | Y60: 44.03778718 | Z60: 38.29464917 | AA60: 31.08943391 | AB60: FALSE | AC60: FALSE | AD60: FALSE | AE60: FALSE | AF60: FALSE | AG60: FALSE | AH60: FALSE | AI60: FALSE | AJ60: FALSE | AK60: FALSE
C61: NPV of Debt Service from Function | E61: =E64 -> 699.9577637
C62: Computed NPV of Debt Service | E62: =SUMPRODUCT(H60:AK60/H54:AK54) -> 697.3917815 | F62: =ROUND(Fix_1-Comp_1,0)=0 -> FALSE
D64: Function Outputs for Sculpting | E64: =debt_sculpt(5:5,E56,E42,53:53,6:6,48:48,E20,21:21) -> 699.9577637 | F64: 1.703622341
C66: Repayment and Debt Size from Equal Installment | E66: =E35 -> 20 | F66: =E44 -> 700 | H66: =$F$66/$E$39*H6 -> 35 | I66: =$F$66/$E$39*I6 -> 35 | J66: 35 | K66: 35 | L66: 35 | M66: 35 | N66: 35 | O66: 35 | P66: 35 | Q66: 35 | R66: 35 | S66: 35 | T66: 35 | U66: 35 | V66: 35 | W66: 35 | X66: 35 | Y66: 35 | Z66: 35 | AA66: 35 | AB66: 0 | AC66: 0 | AD66: 0 | AE66: 0 | AF66: 0 | AG66: 0 | AH66: 0 | AI66: 0 | AJ66: 0 | AK66: 0
C67: DSCR Result | E67: =MIN(97:97) -> 1.370111872
C68: DSCR Target | E68: =E26 -> 1.2 | F68: =ROUND(E68-E67,3)=0 -> FALSE
D69: Difference | E69: =E68-E67 -> -0.1701118721
D70: Debt with Dynamic Goal Seek Function | E70: =equal_installment(5:5,E56,81:81,6:6,48:48,E20,21:21,E39) -> 813.8044434 | F70: 813.8044434 | G70: 8
A72: Project Finance Model
B73: Cap Exp | G73: =G10 -> 1000
B74: Debt | G74: =E44 -> 700
B75: Equity | G75: =G73-G74 -> 300
B77: Debt
C78: Opening Balance | H78: =G80 -> 700 | I78: =H80 -> 665 | J78: 630 | K78: 595 | L78: 560 | M78: 525 | N78: 490 | O78: 455 | P78: 420 | Q78: 385 | R78: 350 | S78: 315 | T78: 280 | U78: 245 | V78: 210 | W78: 175 | X78: 140 | Y78: 105 | Z78: 70 | AA78: 35 | AB78: 0 | AC78: 0 | AD78: 0 | AE78: 0 | AF78: 0 | AG78: 0 | AH78: 0 | AI78: 0 | AJ78: 0 | AK78: 0
C79: Less: Repayment | E79: =E38 -> TRUE | H79: =IF($E$79,H66,(H60-H82)*H6) -> 35 | I79: 35 | J79: 35 | K79: 35 | L79: 35 | M79: 35 | N79: 35 | O79: 35 | P79: 35 | Q79: 35 | R79: 35 | S79: 35 | T79: 35 | U79: 35 | V79: 35 | W79: 35 | X79: 35 | Y79: 35 | Z79: 35 | AA79: 35 | AB79: 0 | AC79: 0 | AD79: 0 | AE79: 0 | AF79: 0 | AG79: 0 | AH79: 0 | AI79: 0 | AJ79: 0 | AK79: 0
C80: Closing Balance | G80: =G74 -> 700 | H80: =H78-H79 -> 665 | I80: =I78-I79 -> 630 | J80: 595 | K80: 560 | L80: 525 | M80: 490 | N80: 455 | O80: 420 | P80: 385 | Q80: 350 | R80: 315 | S80: 280 | T80: 245 | U80: 210 | V80: 175 | W80: 140 | X80: 105 | Y80: 70 | Z80: 35 | AA80: 0 | AB80: 0 | AC80: 0 | AD80: 0 | AE80: 0 | AF80: 0 | AG80: 0 | AH80: 0 | AI80: 0 | AJ80: 0 | AK80: 0
C81: Interest Rate | H81: =LOOKUP(H5,27:27,32:32) -> 0.0525 | I81: 0.0525 | J81: 0.0525 | K81: 0.0525 | L81: 0.055 | M81: 0.055 | N81: 0.055 | O81: 0.055 | P81: 0.055 | Q81: 0.0575 | R81: 0.0575 | S81: 0.0575 | T81: 0.0575 | U81: 0.0575 | V81: 0.0575 | W81: 0.0575 | X81: 0.0575 | Y81: 0.0575 | Z81: 0.0575 | AA81: 0.0575 | AB81: 0.0575 | AC81: 0.0575 | AD81: 0.0575 | AE81: 0.0575 | AF81: 0.0575 | AG81: 0.0575 | AH81: 0.0575 | AI81: 0.0575 | AJ81: 0.0575 | AK81: 0.0575
C82: Interest Expense | H82: =H81*H78 -> 36.75 | I82: =I81*I78 -> 34.9125 | J82: 33.075 | K82: 31.2375 | L82: 30.8 | M82: 28.875 | N82: 26.95 | O82: 25.025 | P82: 23.1 | Q82: 22.1375 | R82: 20.125 | S82: 18.1125 | T82: 16.1 | U82: 14.0875 | V82: 12.075 | W82: 10.0625 | X82: 8.05 | Y82: 6.0375 | Z82: 4.025 | AA82: 2.0125 | AB82: 0 | AC82: 0 | AD82: 0 | AE82: 0 | AF82: 0 | AG82: 0 | AH82: 0 | AI82: 0 | AJ82: 0 | AK82: 0
F83: =">"&F6 -> >20
C84: Ending Balance Test | F84: =ROUND(SUMIF(5:5,F83,80:80),2)=0 -> TRUE
A86: Profit and Loss
B87: EBITDA | H87: =H14 -> 110.4007526 | I87: 117.0247978 | J87: 124.0462856 | K87: 131.4890628 | L87: 139.3784065 | M87: 147.7411109 | N87: 113.8610731 | O87: 116.5919068 | P87: 118.8471144 | Q87: 120.4984396 | R87: 121.3943806 | S87: 121.356371 | T87: 120.1743524 | U87: 117.6016452 | V87: 113.349006 | W87: 107.9495294 | X87: 100.401633 | Y87: 90.30358299 | Z87: 77.18874267 | AA87: 60.5155774 | AB87: 59.64269501 | AC87: 58.37304827 | AD87: 56.65649689 | AE87: 54.43787847 | AF87: 51.65655316 | AG87: 48.2459093 | AH87: 44.13282665 | AI87: 39.23709383 | AJ87: 33.47077603 | AK87: 26.73752913
B88: Less: Depreciation | H88: =H21 -> 33.33333333 | I88: 33.33333333 | J88: 33.33333333 | K88: 33.33333333 | L88: 33.33333333 | M88: 33.33333333 | N88: 33.33333333 | O88: 33.33333333 | P88: 33.33333333 | Q88: 33.33333333 | R88: 33.33333333 | S88: 33.33333333 | T88: 33.33333333 | U88: 33.33333333 | V88: 33.33333333 | W88: 33.33333333 | X88: 33.33333333 | Y88: 33.33333333 | Z88: 33.33333333 | AA88: 33.33333333 | AB88: 33.33333333 | AC88: 33.33333333 | AD88: 33.33333333 | AE88: 33.33333333 | AF88: 33.33333333 | AG88: 33.33333333 | AH88: 33.33333333 | AI88: 33.33333333 | AJ88: 33.33333333 | AK88: 33.33333333
C89: EBIT | H89: =H87-H88 -> 77.06741927 | I89: =I87-I88 -> 83.69146443 | J89: 90.71295229 | K89: 98.15572943 | L89: 106.0450732 | M89: 114.4077776 | N89: 80.52773977 | O89: 83.25857348 | P89: 85.51378107 | Q89: 87.16510622 | R89: 88.06104727 | S89: 88.02303765 | T89: 86.84101905 | U89: 84.26831187 | V89: 80.01567263 | W89: 74.61619611 | X89: 67.06829971 | Y89: 56.97024966 | Z89: 43.85540934 | AA89: 27.18224407 | AB89: 26.30936168 | AC89: 25.03971494 | AD89: 23.32316356 | AE89: 21.10454514 | AF89: 18.32321983 | AG89: 14.91257597 | AH89: 10.79949332 | AI89: 5.903760493 | AJ89: 0.1374427013 | AK89: -6.595804199
B90: Less: Interest Expense | H90: =H82 -> 36.75 | I90: =I82 -> 34.9125 | J90: 33.075 | K90: 31.2375 | L90: 30.8 | M90: 28.875 | N90: 26.95 | O90: 25.025 | P90: 23.1 | Q90: 22.1375 | R90: 20.125 | S90: 18.1125 | T90: 16.1 | U90: 14.0875 | V90: 12.075 | W90: 10.0625 | X90: 8.05 | Y90: 6.0375 | Z90: 4.025 | AA90: 2.0125 | AB90: 0 | AC90: 0 | AD90: 0 | AE90: 0 | AF90: 0 | AG90: 0 | AH90: 0 | AI90: 0 | AJ90: 0 | AK90: 0
C91: EBT | H91: =H89-H90 -> 40.31741927 | I91: =I89-I90 -> 48.77896443 | J91: 57.63795229 | K91: 66.91822943 | L91: 75.2450732 | M91: 85.53277759 | N91: 53.57773977 | O91: 58.23357348 | P91: 62.41378107 | Q91: 65.02760622 | R91: 67.93604727 | S91: 69.91053765 | T91: 70.74101905 | U91: 70.18081187 | V91: 67.94067263 | W91: 64.55369611 | X91: 59.01829971 | Y91: 50.93274966 | Z91: 39.83040934 | AA91: 25.16974407 | AB91: 26.30936168 | AC91: 25.03971494 | AD91: 23.32316356 | AE91: 21.10454514 | AF91: 18.32321983 | AG91: 14.91257597 | AH91: 10.79949332 | AI91: 5.903760493 | AJ91: 0.1374427013 | AK91: -6.595804199
B92: Taxes | F92: =E20 -> 0.3 | H92: =$F$92*H91 -> 12.09522578 | I92: =$F$92*I91 -> 14.63368933 | J92: 17.29138569 | K92: 20.07546883 | L92: 22.57352196 | M92: 25.65983328 | N92: 16.07332193 | O92: 17.47007204 | P92: 18.72413432 | Q92: 19.50828187 | R92: 20.38081418 | S92: 20.97316129 | T92: 21.22230571 | U92: 21.05424356 | V92: 20.38220179 | W92: 19.36610883 | X92: 17.70548991 | Y92: 15.2798249 | Z92: 11.9491228 | AA92: 7.550923221 | AB92: 7.892808504 | AC92: 7.511914482 | AD92: 6.996949068 | AE92: 6.331363541 | AF92: 5.496965948 | AG92: 4.47377279 | AH92: 3.239847996 | AI92: 1.771128148 | AJ92: 0.04123281038 | AK92: -1.97874126
A94: DSCR
B95: Cash Flow | H95: =H50 -> 98.30552682 | I95: 102.3911084 | J95: 106.7548999 | K95: 111.4135939 | L95: 116.8048846 | M95: 122.0812776 | N95: 97.78775117 | O95: 99.12183477 | P95: 100.1229801 | Q95: 100.9901577 | R95: 101.0135664 | S95: 100.3832097 | T95: 98.95204667 | U95: 96.54740164 | V95: 92.96680417 | W95: 88.58342061 | X95: 82.69614313 | Y95: 75.02375809 | Z95: 65.23961987 | AA95: 52.96465418 | AB95: 51.74988651 | AC95: 50.86113379 | AD95: 49.65954783 | AE95: 48.10651493 | AF95: 46.15958721 | AG95: 43.77213651 | AH95: 40.89297866 | AI95: 37.46596568 | AJ95: 33.42954322 | AK95: 28.71627039
B96: Debt Service | H96: =H79+H82 -> 71.75 | I96: 69.9125 | J96: 68.075 | K96: 66.2375 | L96: 65.8 | M96: 63.875 | N96: 61.95 | O96: 60.025 | P96: 58.1 | Q96: 57.1375 | R96: 55.125 | S96: 53.1125 | T96: 51.1 | U96: 49.0875 | V96: 47.075 | W96: 45.0625 | X96: 43.05 | Y96: 41.0375 | Z96: 39.025 | AA96: 37.0125 | AB96: 0 | AC96: 0 | AD96: 0 | AE96: 0 | AF96: 0 | AG96: 0 | AH96: 0 | AI96: 0 | AJ96: 0 | AK96: 0
C97: DSCR | H97: =IF(H96>0.1,H95/H96) -> 1.370111872 | I97: =IF(I96>0.1,I95/I96) -> 1.464560822 | J97: 1.568195372 | K97: 1.68203199 | L97: 1.775150221 | M97: 1.911252879 | N97: 1.578494773 | O97: 1.65134252 | P97: 1.723287093 | Q97: 1.767493462 | R97: 1.832445649 | S97: 1.890011008 | T97: 1.936439269 | U97: 1.966842916 | V97: 1.974865729 | W97: 1.965790194 | X97: 1.920932477 | Y97: 1.828175647 | Z97: 1.671739138 | AA97: 1.430993696 | AB97: FALSE | AC97: FALSE | AD97: FALSE | AE97: FALSE | AF97: FALSE | AG97: FALSE | AH97: FALSE | AI97: FALSE | AJ97: FALSE | AK97: FALSE
A99: Equity Return
B100: Equity Cash Flow | G100: =-G75 -> -300 | H100: =H87-H96-H93 -> 38.65075261 | I100: =I87-I96-I93 -> 47.11229776 | J100: 55.97128563 | K100: 65.25156277 | L100: 73.57840653 | M100: 83.86611092 | N100: 51.9110731 | O100: 56.56690681 | P100: 60.7471144 | Q100: 63.36093956 | R100: 66.2693806 | S100: 68.24387098 | T100: 69.07435238 | U100: 68.5141452 | V100: 66.27400596 | W100: 62.88702944 | X100: 57.35163304 | Y100: 49.26608299 | Z100: 38.16374267 | AA100: 23.5030774 | AB100: 59.64269501 | AC100: 58.37304827 | AD100: 56.65649689 | AE100: 54.43787847 | AF100: 51.65655316 | AG100: 48.2459093 | AH100: 44.13282665 | AI100: 39.23709383 | AJ100: 33.47077603 | AK100: 26.73752913
B101: Equity IRR | E101: =IRR(100:100) -> 0.1897053745
D107: Constraint | E107: =E125 -> DSCR Constrained | I107: Min DSCR | K107: =MIN(97:97) -> 1.370111872
D108: Project IRR | E108: =E16 -> 0.1083708241 | I108: DSCR Target | K108: =E26 -> 1.2
D109: Revenues | E109: =H12 -> 110.4007526 | I109: Debt to Capital | K109: =E25 -> 0.7
D110: Debt Size | E110: =E44 -> 700 | I110: Grace Period | K110: =E34 -> 0
D111: Equity IRR | E111: =E101 -> 0.1897053745 | I111: Tenor | K111: =E35 -> 20
D112: Final Debt to Cap | E112: =G74/G73 -> 0.7 | I112: Sculpted Repayment | K112: =E37 -> FALSE
I114: Target Equity IRR | K114: 0.145
E115: EBITDA | I115: Actual IRR | K115: =E101 -> 0.1897053745
I116: Difference | K116: =K114-K115 -> -0.04470537451 | N116: O&M Discount Rate | P116: ='O&M Agreement'!E7 -> 0.09
I118: Revenues | K118: =E109 -> 110.4007526
I119: Growth | K119: =G11 -> 0.06
D125: Method: | E125: =E46 -> DSCR Constrained

Sheet Function for Dynamic Goal Seek
A1: Function equal_installment(period, Input_DSCR, interest_rate, _
A2: repayment_period, ebitda, tax_rate, _
A3: depreciation, tenor) As Variant
A5: Dim output(3) As Single ' this is for output of function as array
A7: For i = 1 To 2000 ' this is so can read entire rows; find start
A8: If WorksheetFunction.IsNumber(period(i)) Then
A9: start_period = i
A10: Exit For
A11: End If
A12: Next i
A14: For i = start_period To 2000 ' this is so can read entire rows; find end
A15: If WorksheetFunction.IsNumber(period(i)) = False Then
A16: end_period = i - 1
A17: Exit For
A18: End If
A19: Next i
A21: ' get some starting high value to start the loop around start to end
A23: For i = start_period To end_period
A24: end_value = end_value + ebitda(i)
A25: Next i
A27: ' start with wide values
A29: start_value = 1
A30: increment = (end_value - start_value) / 20
A32: try = 0 ' defined counter to avoid infininte loops
A34: next_try: ' come back to here after hit min dscr in test below
A36: try = try + 1
A37: If try > 100 Then GoTo final ' stop infinite loop
A39: For debt_calc = start_value To end_value Step increment ' go around and start with a low value
A41: min_dscr = 1000 ' re-start min dscr with high value
A43: opening_balance = debt_calc ' set starting point for calc
A45: ' calculate the min dscr for the level of debt
A47: For i = start_period To end_period
A48: repayment = 0
A50: interest = interest_rate(i) * opening_balance
A52: If repayment_period(i) = True Then
A53: interest = interest_rate(i) * opening_balance
A54: End If
A56: ebit = ebitda(i) - depreciation(i)
A57: ebt = ebit - interest
A58: taxes = ebt * tax_rate
A60: cash_flow = ebitda(i) - taxes
A62: If repayment_period(i) Then
A63: If tenor > 0 Then repayment = debt_calc / tenor
A65: debt_service = interest + repayment
A67: If debt_service > 0.1 Then
A68: dscr = cash_flow / debt_service
A69: End If
A71: Else
A72: debt_service = interest
A73: End If
A75: If dscr < min_dscr And dscr > 0 Then
A76: min_dscr = dscr
A77: min_period = i
A78: min_ds = debt_service
A79: min_int = interest
A80: min_ob = opening_balance
A81: End If
A83: opening_balance = opening_balance - repayment
A85: Next i ' finish loop over time period
A87: ' after the period loop test the level of debt to see when to stop or adjust increment
A89: If min_dscr < Input_DSCR Then
A90: If Abs(min_dscr - Input_DSCR) < 0.0000001 Then
A91: ' finalise function
A93: output(1) = debt_calc
A94: GoTo final:
A95: End If
A97: ' adjust increment when difference is bigger
A99: start_value = debt_calc - increment
A100: end_value = debt_calc
A101: increment = (end_value - start_value) / 20
A103: GoTo next_try:
A104: End If
A106: Next debt_calc
A108: final:
A109: output(1) = debt_calc
A110: output(2) = min_ob
A111: output(3) = start_period
A113: equal_installment = output
A115: End Function

Sheet Function for Sculpting
A1: Function debt_sculpt(period, Input_DSCR, debt_issued, interest_rate, _
A2: repayment_period, ebitda, tax_rate, _
A3: depreciation) As Variant
A5: Dim interest_index(1000) As Single
A6: Dim cfads(1000) As Single
A7: Dim debt_service(1000) As Single
A8: Dim output(2) As Single
A10: For i = 1 To 2000
A11: If WorksheetFunction.IsNumber(period(i)) Then
A12: start_period = i
A13: Exit For
A14: End If
A15: Next i
A17: For i = start_period To 2000
A18: If WorksheetFunction.IsNumber(period(i)) = False Then
A19: end_period = i - 1
A20: Exit For
A21: End If
A22: Next i
A24: If start_period > 0 Then interest_index(start_period - 1) = 1
A26: For iter = 1 To 10
A28: opening_balance = debt_calc
A30: For i = start_period To end_period
A32: interest_index(i) = interest_index(i - 1)
A34: If period(i) > 0 Then
A35: cfads(i) = 0
A36: repayment = 0
A38: interest = interest_rate(i) * opening_balance
A40: ebit = ebitda(i) - depreciation(i)
A41: ebt = ebit - interest
A42: If period(i) > 0 Then taxes = ebt * tax_rate
A44: cash_flow = ebitda(i) - taxes
A46: If repayment_period(i) = True Then
A47: interest_index(i) = interest_index(i - 1) * (1 + interest_rate(i))
A49: cfads(i) = cash_flow
A50: If target_dscr > 0 Then target_ds = cfads(i) / target_dscr
A51: repayment = target_ds - interest
A53: debt_service(i) = interest + repayment
A54: Else
A55: interest_index(i) = interest_index(i - 1)
A56: cfads(i) = 0
A57: debt_service(i) = 0
A58: End If
A61: opening_balance = opening_balance - repayment
A63: End If
A65: Next i
A67: For i = start_period To end_period
A68: If interest_index(i) > 0 Then interest_index(i) = 1 / interest_index(i)
A69: Next i
A71: debt_calc = WorksheetFunction.SumProduct(debt_service, interest_index)
A73: pv_cfads = WorksheetFunction.SumProduct(interest_index, cfads)
A75: If debt_issued > 0 Then LLCR = pv_cfads / debt_issued
A77: target_dscr = WorksheetFunction.Max(Input_DSCR, LLCR)
A79: Next iter
A81: output(1) = debt_calc
A82: output(2) = LLCR
A84: debt_sculpt = output
A86: End Function

Sheet Taxes and Function
A1: Sculpting and Grace Periods | G1: Test | H1: =F49 -> TRUE
B2: Operations
C3: Period | G3: 0 | H3: 1 | I3: 2 | J3: 3 | K3: 4 | L3: 5 | M3: 6 | N3: 7 | O3: 8 | P3: 9 | Q3: 10 | R3: 11 | S3: 12 | T3: 13 | U3: 14 | V3: 15 | W3: 16 | X3: 17 | Y3: 18 | Z3: 19 | AA3: 20 | AB3: 21 | AC3: 22 | AD3: 23 | AE3: 24 | AF3: 25 | AG3: 26 | AH3: 27 | AI3: 28 | AJ3: 29 | AK3: 30
C4: Repayment Switch | E4: =E22 -> 3 | F4: =E4+E23 -> 24 | H4: =AND(H3>$E$4,H3<=$F$4) -> FALSE | I4: =AND(I3>$E$4,I3<=$F$4) -> FALSE | J4: FALSE | K4: TRUE | L4: TRUE | M4: TRUE | N4: TRUE | O4: TRUE | P4: TRUE | Q4: TRUE | R4: TRUE | S4: TRUE | T4: TRUE | U4: TRUE | V4: TRUE | W4: TRUE | X4: TRUE | Y4: TRUE | Z4: TRUE | AA4: TRUE | AB4: TRUE | AC4: TRUE | AD4: TRUE | AE4: TRUE | AF4: FALSE | AG4: FALSE | AH4: FALSE | AI4: FALSE | AJ4: FALSE | AK4: FALSE
C5: Capital Expenditures | G5: 1000
C6: Growth | G6: 0.02
C7: EBITDA | H7: 48.01915387 | I7: =H7*(1+$G$6) -> 48.97953695 | J7: 49.95912769 | K7: 50.95831024 | L7: 51.97747645 | M7: 53.01702598 | N7: 54.07736649 | O7: 55.15891382 | P7: 56.2620921 | Q7: 57.38733394 | R7: 58.53508062 | S7: 59.70578223 | T7: 60.89989788 | U7: 62.11789584 | V7: 63.36025375 | W7: 64.62745883 | X7: 65.92000801 | Y7: 67.23840817 | Z7: 68.58317633 | AA7: 69.95483986 | AB7: 71.35393665 | AC7: 72.78101539 | AD7: 74.23663569 | AE7: 75.72136841 | AF7: 77.23579577 | AG7: 78.78051169 | AH7: 80.35612192 | AI7: 81.96324436 | AJ7: 83.60250925 | AK7: 85.27455944
C8: Net Cash Flow | G8: =G7-G5 -> -1000 | H8: =H7-H5 -> 48.01915387 | I8: 48.97953695 | J8: 49.95912769 | K8: 50.95831024 | L8: 51.97747645 | M8: 53.01702598 | N8: 54.07736649 | O8: 55.15891382 | P8: 56.2620921 | Q8: 57.38733394 | R8: 58.53508062 | S8: 59.70578223 | T8: 60.89989788 | U8: 62.11789584 | V8: 63.36025375 | W8: 64.62745883 | X8: 65.92000801 | Y8: 67.23840817 | Z8: 68.58317633 | AA8: 69.95483986 | AB8: 71.35393665 | AC8: 72.78101539 | AD8: 74.23663569 | AE8: 75.72136841 | AF8: 77.23579577 | AG8: 78.78051169 | AH8: 80.35612192 | AI8: 81.96324436 | AJ8: 83.60250925 | AK8: 85.27455944
C9: Project IRR | E9: =IRR(8:8) -> 0.04437468401
A11: Taxes
C12: Depreciation | E12: 15 | H12: =H3<=$E$12 -> TRUE | I12: =I3<=$E$12 -> TRUE | J12: TRUE | K12: TRUE | L12: TRUE | M12: TRUE | N12: TRUE | O12: TRUE | P12: TRUE | Q12: TRUE | R12: TRUE | S12: TRUE | T12: TRUE | U12: TRUE | V12: TRUE | W12: FALSE | X12: FALSE | Y12: FALSE | Z12: FALSE | AA12: FALSE | AB12: FALSE | AC12: FALSE | AD12: FALSE | AE12: FALSE | AF12: FALSE | AG12: FALSE | AH12: FALSE | AI12: FALSE | AJ12: FALSE | AK12: FALSE
C13: Tax Rate | E13: 0.3
C14: Depreciation Expense | H14: =$G$5/$E$12*H12 -> 66.66666667 | I14: 66.66666667 | J14: 66.66666667 | K14: 66.66666667 | L14: 66.66666667 | M14: 66.66666667 | N14: 66.66666667 | O14: 66.66666667 | P14: 66.66666667 | Q14: 66.66666667 | R14: 66.66666667 | S14: 66.66666667 | T14: 66.66666667 | U14: 66.66666667 | V14: 66.66666667 | W14: 0 | X14: 0 | Y14: 0 | Z14: 0 | AA14: 0 | AB14: 0 | AC14: 0 | AD14: 0 | AE14: 0 | AF14: 0 | AG14: 0 | AH14: 0 | AI14: 0 | AJ14: 0 | AK14: 0
B16: Financing Assumptions
C17: Target DSCR | E17: =G17/10 -> 1.5 | G17: 15
C20: Interest Year | E20: 0 | F20: 1 | G20: 5 | H20: 10
C21: Interest Rate | E21: 0.03 | F21: 0.0325 | G21: 0.035 | H21: 0.0375
C22: Grace Period | E22: 3
C23: Tenor | E23: 21
C24: Max Debt to Capital | E24: =G24/100 -> 0.77 | G24: 77
C25: Sculpting | E25: TRUE
C26: Equal Instrallment | E26: =NOT(E25) -> FALSE
A28: Debt Size
C29: Max Debt to Cap | E29: =E24*G5 -> 770
C30: DSCR Target | E30: =Comp_1 -> 580.0828857
D31: Final | E31: =MIN(E29:E30) -> 580.0828857
D32: Method | E32: =IF(E31<>E29,"DSCR","Max Gear") -> DSCR
C35: EBITDA | H35: =H8 -> 48.01915387 | I35: =I8 -> 48.97953695 | J35: 49.95912769 | K35: 50.95831024 | L35: 51.97747645 | M35: 53.01702598 | N35: 54.07736649 | O35: 55.15891382 | P35: 56.2620921 | Q35: 57.38733394 | R35: 58.53508062 | S35: 59.70578223 | T35: 60.89989788 | U35: 62.11789584 | V35: 63.36025375 | W35: 64.62745883 | X35: 65.92000801 | Y35: 67.23840817 | Z35: 68.58317633 | AA35: 69.95483986 | AB35: 71.35393665 | AC35: 72.78101539 | AD35: 74.23663569 | AE35: 75.72136841 | AF35: 77.23579577 | AG35: 78.78051169 | AH35: 80.35612192 | AI35: 81.96324436 | AJ35: 83.60250925 | AK35: 85.27455944
C36: Less: Taxes | H36: =H73 -> -11.25006197 | I36: =I73 -> -10.96194705 | J36: -10.66806983 | K36: -10.36831506 | L36: -10.26629427 | M36: -9.723806823 | N36: -9.163530849 | O36: -8.584916296 | P36: -7.987396668 | Q36: -7.698002025 | R36: -7.049820584 | S36: -6.37961127 | T36: -5.686661598 | U36: -4.970236676 | V36: -4.229578511 | W36: 16.5360947 | X36: 17.17758933 | Y36: 17.84123703 | Z36: 18.52776056 | AA36: 19.23790552 | AB36: 19.97244107 | AC36: 20.73216066 | AD36: 21.51788277 | AE36: 22.33045168 | AF36: 23.17073831 | AG36: 23.63415309 | AH36: 24.10683616 | AI36: 24.58897289 | AJ36: 25.08075235 | AK36: 25.58236741
C37: CFADS | H37: =H35-H36 -> 59.26921585 | I37: =I35-I36 -> 59.941484 | J37: 60.62719752 | K37: 61.32662531 | L37: 62.24377072 | M37: 62.7408328 | N37: 63.24089734 | O37: 63.74383012 | P37: 64.24948877 | Q37: 65.08533597 | R37: 65.58490121 | S37: 66.0853935 | T37: 66.58655948 | U37: 67.08813251 | V37: 67.58983226 | W37: 48.09136412 | X37: 48.74241868 | Y37: 49.39717114 | Z37: 50.05541577 | AA37: 50.71693434 | AB37: 51.38149558 | AC37: 52.04885472 | AD37: 52.71875292 | AE37: 53.39091673 | AF37: 54.06505746 | AG37: 55.1463586 | AH37: 56.24928577 | AI37: 57.37427148 | AJ37: 58.5217569 | AK37: 59.69219203
C39: Cash Flow over Repayment Period | H39: =IF(H4,H37) -> FALSE | I39: =IF(I4,I37) -> FALSE | J39: FALSE | K39: 61.32662531 | L39: 62.24377072 | M39: 62.7408328 | N39: 63.24089734 | O39: 63.74383012 | P39: 64.24948877 | Q39: 65.08533597 | R39: 65.58490121 | S39: 66.0853935 | T39: 66.58655948 | U39: 67.08813251 | V39: 67.58983226 | W39: 48.09136412 | X39: 48.74241868 | Y39: 49.39717114 | Z39: 50.05541577 | AA39: 50.71693434 | AB39: 51.38149558 | AC39: 52.04885472 | AD39: 52.71875292 | AE39: 53.39091673 | AF39: FALSE | AG39: FALSE | AH39: FALSE | AI39: FALSE | AJ39: FALSE | AK39: FALSE
C40: Interest Rate | H40: =LOOKUP(H3,20:20,21:21) -> 0.0325 | I40: 0.0325 | J40: 0.0325 | K40: 0.0325 | L40: 0.035 | M40: 0.035 | N40: 0.035 | O40: 0.035 | P40: 0.035 | Q40: 0.0375 | R40: 0.0375 | S40: 0.0375 | T40: 0.0375 | U40: 0.0375 | V40: 0.0375 | W40: 0.0375 | X40: 0.0375 | Y40: 0.0375 | Z40: 0.0375 | AA40: 0.0375 | AB40: 0.0375 | AC40: 0.0375 | AD40: 0.0375 | AE40: 0.0375 | AF40: 0.0375 | AG40: 0.0375 | AH40: 0.0375 | AI40: 0.0375 | AJ40: 0.0375 | AK40: 0.0375
C41: Interest Rate Index | G41: 1 | H41: =G41*(1+H40*H4) -> 1 | I41: =H41*(1+I40*I4) -> 1 | J41: 1 | K41: 1.0325 | L41: 1.0686375 | M41: 1.106039812 | N41: 1.144751206 | O41: 1.184817498 | P41: 1.226286111 | Q41: 1.27227184 | R41: 1.319982034 | S41: 1.36948136 | T41: 1.420836911 | U41: 1.474118295 | V41: 1.529397731 | W41: 1.586750146 | X41: 1.646253277 | Y41: 1.707987774 | Z41: 1.772037316 | AA41: 1.838488715 | AB41: 1.907432042 | AC41: 1.978960744 | AD41: 2.053171772 | AE41: 2.130165713 | AF41: 2.130165713 | AG41: 2.130165713 | AH41: 2.130165713 | AI41: 2.130165713 | AJ41: 2.130165713 | AK41: 2.130165713
C42: NPV of Cash Flow over Repayment Period | F42: =SUMPRODUCT(H39:AK39/H41:AK41) -> 870.1243022
C43: Target DSCR | E43: =E17 -> 1.5
C44: LLCR Using Max Debt to Cap | E44: =F51 -> 1.130031586
C45: Target DSCR Applied | E45: =MAX(E44,E17) -> 1.5
C47: Target Debt Service | F47: =E45 -> 1.5 | H47: =IF(H4,H39/$F$47) -> FALSE | I47: =IF(I4,I39/$F$47) -> FALSE | J47: FALSE | K47: 40.88441687 | L47: 41.49584715 | M47: 41.82722187 | N47: 42.16059823 | O47: 42.49588675 | P47: 42.83299251 | Q47: 43.39022398 | R47: 43.72326747 | S47: 44.056929 | T47: 44.39103965 | U47: 44.72542168 | V47: 45.05988818 | W47: 32.06090942 | X47: 32.49494578 | Y47: 32.93144743 | Z47: 33.37027718 | AA47: 33.81128956 | AB47: 34.25433039 | AC47: 34.69923648 | AD47: 35.14583528 | AE47: 35.59394448 | AF47: FALSE | AG47: FALSE | AH47: FALSE | AI47: FALSE | AJ47: FALSE | AK47: FALSE
C48: NPV of Debt Service | E48: =E51 -> 580.0828857
E49: =SUMPRODUCT(H47:AK47/H41:AK41) -> 580.0828681 | F49: =ROUND(Comp_1-Fix_1,2)=0 -> TRUE
D51: Debt Sculpting Function | E51: =debt_sculpt(3:3,E43,E29,40:40,4:4,35:35,E13,14:14) -> 580.0828857 | F51: 1.130031586
A53: Project Finance Model
B54: Cap Exp | G54: =G5 -> 1000
B55: Debt | G55: =E31 -> 580.0828857
B56: Equity | G56: =G54-G55 -> 419.9171143
B58: Debt
C59: Opening Balance | H59: =G61 -> 580.0828857 | I59: =H61 -> 580.0828857 | J59: 580.0828857 | K59: 580.0828857 | L59: 558.0511627 | M59: 536.0871062 | N59: 513.0229331 | O59: 488.8181375 | P59: 463.4308855 | Q59: 436.817974 | R59: 409.8084241 | S59: 381.4529725 | T59: 351.70053 | U59: 320.4982602 | V59: 287.7915233 | W59: 253.5238172 | X59: 230.970051 | Y59: 207.1364821 | Z59: 181.9726527 | AA59: 155.42635 | AB59: 127.4435486 | AC59: 97.96835129 | AD59: 66.94292798 | AE59: 34.3074525 | AF59: 3.748046917e-05 | AG59: 3.748046917e-05 | AH59: 3.748046917e-05 | AI59: 3.748046917e-05 | AJ59: 3.748046917e-05 | AK59: 3.748046917e-05
C60: Less: Repayment | H60: =(H47-H63)*H4 -> 0 | I60: 0 | J60: 0 | K60: 22.03172308 | L60: 21.96405645 | M60: 23.06417315 | N60: 24.20479557 | O60: 25.38725194 | P60: 26.61291152 | Q60: 27.00954995 | R60: 28.35545157 | S60: 29.75244253 | T60: 31.20226978 | U60: 32.70673692 | V60: 34.26770605 | W60: 22.55376627 | X60: 23.83356887 | Y60: 25.16382935 | Z60: 26.5463027 | AA60: 27.98280143 | AB60: 29.47519731 | AC60: 31.02542331 | AD60: 32.63547548 | AE60: 34.30741501 | AF60: 0 | AG60: 0 | AH60: 0 | AI60: 0 | AJ60: 0 | AK60: 0
C61: Closing Balance | G61: =G55 -> 580.0828857 | H61: =H59-H60 -> 580.0828857 | I61: =I59-I60 -> 580.0828857 | J61: 580.0828857 | K61: 558.0511627 | L61: 536.0871062 | M61: 513.0229331 | N61: 488.8181375 | O61: 463.4308855 | P61: 436.817974 | Q61: 409.8084241 | R61: 381.4529725 | S61: 351.70053 | T61: 320.4982602 | U61: 287.7915233 | V61: 253.5238172 | W61: 230.970051 | X61: 207.1364821 | Y61: 181.9726527 | Z61: 155.42635 | AA61: 127.4435486 | AB61: 97.96835129 | AC61: 66.94292798 | AD61: 34.3074525 | AE61: 3.748046917e-05 | AF61: 3.748046917e-05 | AG61: 3.748046917e-05 | AH61: 3.748046917e-05 | AI61: 3.748046917e-05 | AJ61: 3.748046917e-05 | AK61: 3.748046917e-05
C62: Interest Rate | H62: =LOOKUP(H3,20:20,21:21) -> 0.0325 | I62: 0.0325 | J62: 0.0325 | K62: 0.0325 | L62: 0.035 | M62: 0.035 | N62: 0.035 | O62: 0.035 | P62: 0.035 | Q62: 0.0375 | R62: 0.0375 | S62: 0.0375 | T62: 0.0375 | U62: 0.0375 | V62: 0.0375 | W62: 0.0375 | X62: 0.0375 | Y62: 0.0375 | Z62: 0.0375 | AA62: 0.0375 | AB62: 0.0375 | AC62: 0.0375 | AD62: 0.0375 | AE62: 0.0375 | AF62: 0.0375 | AG62: 0.0375 | AH62: 0.0375 | AI62: 0.0375 | AJ62: 0.0375 | AK62: 0.0375
C63: Interest Expense | H63: =H62*H59 -> 18.85269379 | I63: =I62*I59 -> 18.85269379 | J63: 18.85269379 | K63: 18.85269379 | L63: 19.53179069 | M63: 18.76304872 | N63: 17.95580266 | O63: 17.10863481 | P63: 16.22008099 | Q63: 16.38067403 | R63: 15.3678159 | S63: 14.30448647 | T63: 13.18876987 | U63: 12.01868476 | V63: 10.79218212 | W63: 9.507143146 | X63: 8.661376911 | Y63: 7.767618078 | Z63: 6.823974478 | AA63: 5.828488126 | AB63: 4.779133073 | AC63: 3.673813173 | AD63: 2.510359799 | AE63: 1.286529469 | AF63: 1.405517594e-06 | AG63: 1.405517594e-06 | AH63: 1.405517594e-06 | AI63: 1.405517594e-06 | AJ63: 1.405517594e-06 | AK63: 1.405517594e-06
F64: =">"&F4 -> >24
C65: Ending Balance Test | F65: =ROUND(SUMIF(3:3,F64,61:61),2)=0 -> TRUE
A67: Profit and Loss
B68: EBITDA | H68: =H7 -> 48.01915387 | I68: 48.97953695 | J68: 49.95912769 | K68: 50.95831024 | L68: 51.97747645 | M68: 53.01702598 | N68: 54.07736649 | O68: 55.15891382 | P68: 56.2620921 | Q68: 57.38733394 | R68: 58.53508062 | S68: 59.70578223 | T68: 60.89989788 | U68: 62.11789584 | V68: 63.36025375 | W68: 64.62745883 | X68: 65.92000801 | Y68: 67.23840817 | Z68: 68.58317633 | AA68: 69.95483986 | AB68: 71.35393665 | AC68: 72.78101539 | AD68: 74.23663569 | AE68: 75.72136841 | AF68: 77.23579577 | AG68: 78.78051169 | AH68: 80.35612192 | AI68: 81.96324436 | AJ68: 83.60250925 | AK68: 85.27455944
B69: Less: Depreciation | H69: =H14 -> 66.66666667 | I69: 66.66666667 | J69: 66.66666667 | K69: 66.66666667 | L69: 66.66666667 | M69: 66.66666667 | N69: 66.66666667 | O69: 66.66666667 | P69: 66.66666667 | Q69: 66.66666667 | R69: 66.66666667 | S69: 66.66666667 | T69: 66.66666667 | U69: 66.66666667 | V69: 66.66666667 | W69: 0 | X69: 0 | Y69: 0 | Z69: 0 | AA69: 0 | AB69: 0 | AC69: 0 | AD69: 0 | AE69: 0 | AF69: 0 | AG69: 0 | AH69: 0 | AI69: 0 | AJ69: 0 | AK69: 0
B70: EBIT | H70: =H68-H69 -> -18.6475128 | I70: =I68-I69 -> -17.68712972 | J70: -16.70753898 | K70: -15.70835643 | L70: -14.68919022 | M70: -13.64964069 | N70: -12.58930017 | O70: -11.50775284 | P70: -10.40457457 | Q70: -9.279332723 | R70: -8.131586045 | S70: -6.960884432 | T70: -5.766768787 | U70: -4.54877083 | V70: -3.306412913 | W70: 64.62745883 | X70: 65.92000801 | Y70: 67.23840817 | Z70: 68.58317633 | AA70: 69.95483986 | AB70: 71.35393665 | AC70: 72.78101539 | AD70: 74.23663569 | AE70: 75.72136841 | AF70: 77.23579577 | AG70: 78.78051169 | AH70: 80.35612192 | AI70: 81.96324436 | AJ70: 83.60250925 | AK70: 85.27455944
B71: Less: Interest Expense | H71: =H63 -> 18.85269379 | I71: =I63 -> 18.85269379 | J71: 18.85269379 | K71: 18.85269379 | L71: 19.53179069 | M71: 18.76304872 | N71: 17.95580266 | O71: 17.10863481 | P71: 16.22008099 | Q71: 16.38067403 | R71: 15.3678159 | S71: 14.30448647 | T71: 13.18876987 | U71: 12.01868476 | V71: 10.79218212 | W71: 9.507143146 | X71: 8.661376911 | Y71: 7.767618078 | Z71: 6.823974478 | AA71: 5.828488126 | AB71: 4.779133073 | AC71: 3.673813173 | AD71: 2.510359799 | AE71: 1.286529469 | AF71: 1.405517594e-06 | AG71: 1.405517594e-06 | AH71: 1.405517594e-06 | AI71: 1.405517594e-06 | AJ71: 1.405517594e-06 | AK71: 1.405517594e-06
B72: EBT | H72: =H70-H71 -> -37.50020658 | I72: =I70-I71 -> -36.5398235 | J72: -35.56023277 | K72: -34.56105021 | L72: -34.22098091 | M72: -32.41268941 | N72: -30.54510283 | O72: -28.61638765 | P72: -26.62465556 | Q72: -25.66000675 | R72: -23.49940195 | S72: -21.2653709 | T72: -18.95553866 | U72: -16.56745559 | V72: -14.09859504 | W72: 55.12031568 | X72: 57.25863109 | Y72: 59.47079009 | Z72: 61.75920185 | AA72: 64.12635173 | AB72: 66.57480358 | AC72: 69.10720221 | AD72: 71.72627589 | AE72: 74.43483894 | AF72: 77.23579437 | AG72: 78.78051028 | AH72: 80.35612052 | AI72: 81.96324296 | AJ72: 83.60250784 | AK72: 85.27455803
B73: Taxes | F73: =E13 -> 0.3 | H73: =$F$73*H72 -> -11.25006197 | I73: =$F$73*I72 -> -10.96194705 | J73: -10.66806983 | K73: -10.36831506 | L73: -10.26629427 | M73: -9.723806823 | N73: -9.163530849 | O73: -8.584916296 | P73: -7.987396668 | Q73: -7.698002025 | R73: -7.049820584 | S73: -6.37961127 | T73: -5.686661598 | U73: -4.970236676 | V73: -4.229578511 | W73: 16.5360947 | X73: 17.17758933 | Y73: 17.84123703 | Z73: 18.52776056 | AA73: 19.23790552 | AB73: 19.97244107 | AC73: 20.73216066 | AD73: 21.51788277 | AE73: 22.33045168 | AF73: 23.17073831 | AG73: 23.63415309 | AH73: 24.10683616 | AI73: 24.58897289 | AJ73: 25.08075235 | AK73: 25.58236741
A76: DSCR
B77: Cash Flow | H77: =H37 -> 59.26921585 | I77: 59.941484 | J77: 60.62719752 | K77: 61.32662531 | L77: 62.24377072 | M77: 62.7408328 | N77: 63.24089734 | O77: 63.74383012 | P77: 64.24948877 | Q77: 65.08533597 | R77: 65.58490121 | S77: 66.0853935 | T77: 66.58655948 | U77: 67.08813251 | V77: 67.58983226 | W77: 48.09136412 | X77: 48.74241868 | Y77: 49.39717114 | Z77: 50.05541577 | AA77: 50.71693434 | AB77: 51.38149558 | AC77: 52.04885472 | AD77: 52.71875292 | AE77: 53.39091673 | AF77: 54.06505746 | AG77: 55.1463586 | AH77: 56.24928577 | AI77: 57.37427148 | AJ77: 58.5217569 | AK77: 59.69219203
B78: Debt Service | H78: =H60+H63 -> 18.85269379 | I78: =I60+I63 -> 18.85269379 | J78: 18.85269379 | K78: 40.88441687 | L78: 41.49584715 | M78: 41.82722187 | N78: 42.16059823 | O78: 42.49588675 | P78: 42.83299251 | Q78: 43.39022398 | R78: 43.72326747 | S78: 44.056929 | T78: 44.39103965 | U78: 44.72542168 | V78: 45.05988818 | W78: 32.06090942 | X78: 32.49494578 | Y78: 32.93144743 | Z78: 33.37027718 | AA78: 33.81128956 | AB78: 34.25433039 | AC78: 34.69923648 | AD78: 35.14583528 | AE78: 35.59394448 | AF78: 1.405517594e-06 | AG78: 1.405517594e-06 | AH78: 1.405517594e-06 | AI78: 1.405517594e-06 | AJ78: 1.405517594e-06 | AK78: 1.405517594e-06
C79: DSCR | H79: =IF(H78>0.1,H77/H78) -> 3.143806212 | I79: =IF(I78>0.1,I77/I78) -> 3.17946521 | J79: 3.215837387 | K79: 1.5 | L79: 1.5 | M79: 1.5 | N79: 1.5 | O79: 1.5 | P79: 1.5 | Q79: 1.5 | R79: 1.5 | S79: 1.5 | T79: 1.5 | U79: 1.5 | V79: 1.5 | W79: 1.5 | X79: 1.5 | Y79: 1.5 | Z79: 1.5 | AA79: 1.5 | AB79: 1.5 | AC79: 1.5 | AD79: 1.5 | AE79: 1.5 | AF79: FALSE | AG79: FALSE | AH79: FALSE | AI79: FALSE | AJ79: FALSE | AK79: FALSE
A81: Equity Return
B82: Equity Cash Flow | G82: =-G56 -> -419.9171143 | H82: =H77-H78 -> 40.41652206 | I82: =I77-I78 -> 41.08879021 | J82: 41.77450373 | K82: 20.44220844 | L82: 20.74792357 | M82: 20.91361093 | N82: 21.08029911 | O82: 21.24794337 | P82: 21.41649626 | Q82: 21.69511199 | R82: 21.86163374 | S82: 22.0284645 | T82: 22.19551983 | U82: 22.36271084 | V82: 22.52994409 | W82: 16.03045471 | X82: 16.24747289 | Y82: 16.46572371 | Z82: 16.68513859 | AA82: 16.90564478 | AB82: 17.12716519 | AC82: 17.34961824 | AD82: 17.57291764 | AE82: 17.79697224 | AF82: 54.06505606 | AG82: 55.1463572 | AH82: 56.24928436 | AI82: 57.37427007 | AJ82: 58.52175549 | AK82: 59.69219062
B83: Equity IRR | E83: =IRR(82:82) -> 0.05056365684
D85: Project IRR | E85: =E9 -> 0.04437468401 | I85: DSCR | K85: =E17 -> 1.5
D86: EBITDA | E86: =H7 -> 48.01915387 | I86: Debt to Capital | K86: =E24 -> 0.77
D87: Debt Size | E87: =E31 -> 580.0828857 | I87: Grace Period | K87: =E22 -> 3
D88: Equity IRR | E88: =E83 -> 0.05056365684 | I88: Tenor | K88: =E23 -> 21
D89: Final Debt to Cap | E89: =G55/G54 -> 0.5800828857 | F89: =E102 -> DSCR
I91: Target Equity IRR | K91: 0.07
E92: EBITDA | I92: Actual IRR | K92: =E83 -> 0.05056365684
I93: Difference | K93: =K91-K92 -> 0.01943634316
I95: EBITDA | K95: =E86 -> 48.01915387
D102: Method: | E102: =E32 -> DSCR

Sheet Taxes
A1: Sculpting and Grace Periods
B2: Operations
C3: Period | H3: 0 | I3: 1 | J3: 2 | K3: 3 | L3: 4 | M3: 5 | N3: 6 | O3: 7 | P3: 8 | Q3: 9 | R3: 10 | S3: 11 | T3: 12 | U3: 13 | V3: 14 | W3: 15 | X3: 16 | Y3: 17 | Z3: 18 | AA3: 19 | AB3: 20 | AC3: 21 | AD3: 22 | AE3: 23 | AF3: 24 | AG3: 25 | AH3: 26 | AI3: 27 | AJ3: 28 | AK3: 29 | AL3: 30
C4: Repayment Switch | E4: =E20 -> 0 | F4: =E4+E21 -> 6 | H4: =COUNTIF(I4:AL4,TRUE) -> 6 | I4: =AND(I3>$E$4,I3<=$F$4) -> TRUE | J4: =AND(J3>$E$4,J3<=$F$4) -> TRUE | K4: TRUE | L4: TRUE | M4: TRUE | N4: TRUE | O4: FALSE | P4: FALSE | Q4: FALSE | R4: FALSE | S4: FALSE | T4: FALSE | U4: FALSE | V4: FALSE | W4: FALSE | X4: FALSE | Y4: FALSE | Z4: FALSE | AA4: FALSE | AB4: FALSE | AC4: FALSE | AD4: FALSE | AE4: FALSE | AF4: FALSE | AG4: FALSE | AH4: FALSE | AI4: FALSE | AJ4: FALSE | AK4: FALSE | AL4: FALSE
C5: Capital Expenditures | H5: 1000
C6: Growth | H6: 0.02
C7: EBITDA | I7: 85 | J7: =I7*(1+$H$6) -> 86.7 | K7: 88.434 | L7: 90.20268 | M7: 92.0067336 | N7: 93.84686827 | O7: 95.72380564 | P7: 97.63828175 | Q7: 99.59104739 | R7: 101.5828683 | S7: 103.6145257 | T7: 105.6868162 | U7: 107.8005525 | V7: 109.9565636 | W7: 112.1556949 | X7: 114.3988088 | Y7: 116.6867849 | Z7: 119.0205206 | AA7: 121.400931 | AB7: 123.8289497 | AC7: 126.3055287 | AD7: 128.8316392 | AE7: 131.408272 | AF7: 134.0364375 | AG7: 136.7171662 | AH7: 139.4515095 | AI7: 142.2405397 | AJ7: 145.0853505 | AK7: 147.9870575 | AL7: 150.9467987
C8: Net Cash Flow | H8: =H7-H5 -> -1000 | I8: =I7-I5 -> 85 | J8: 86.7 | K8: 88.434 | L8: 90.20268 | M8: 92.0067336 | N8: 93.84686827 | O8: 95.72380564 | P8: 97.63828175 | Q8: 99.59104739 | R8: 101.5828683 | S8: 103.6145257 | T8: 105.6868162 | U8: 107.8005525 | V8: 109.9565636 | W8: 112.1556949 | X8: 114.3988088 | Y8: 116.6867849 | Z8: 119.0205206 | AA8: 121.400931 | AB8: 123.8289497 | AC8: 126.3055287 | AD8: 128.8316392 | AE8: 131.408272 | AF8: 134.0364375 | AG8: 136.7171662 | AH8: 139.4515095 | AI8: 142.2405397 | AJ8: 145.0853505 | AK8: 147.9870575 | AL8: 150.9467987
C9: Project IRR | E9: =IRR(8:8) -> 0.09483965339
A11: Taxes
C12: Depreciation | E12: 5 | I12: =I3<=$E$12 -> TRUE | J12: =J3<=$E$12 -> TRUE | K12: TRUE | L12: TRUE | M12: TRUE | N12: FALSE | O12: FALSE | P12: FALSE | Q12: FALSE | R12: FALSE | S12: FALSE | T12: FALSE | U12: FALSE | V12: FALSE | W12: FALSE | X12: FALSE | Y12: FALSE | Z12: FALSE | AA12: FALSE | AB12: FALSE | AC12: FALSE | AD12: FALSE | AE12: FALSE | AF12: FALSE | AG12: FALSE | AH12: FALSE | AI12: FALSE | AJ12: FALSE | AK12: FALSE | AL12: FALSE
C13: Taxes | E13: 0
C14: Depreciation Expense | I14: =$H$5/$E$12*I12 -> 200 | J14: 200 | K14: 200 | L14: 200 | M14: 200 | N14: 0 | O14: 0 | P14: 0 | Q14: 0 | R14: 0 | S14: 0 | T14: 0 | U14: 0 | V14: 0 | W14: 0 | X14: 0 | Y14: 0 | Z14: 0 | AA14: 0 | AB14: 0 | AC14: 0 | AD14: 0 | AE14: 0 | AF14: 0 | AG14: 0 | AH14: 0 | AI14: 0 | AJ14: 0 | AK14: 0 | AL14: 0
B16: Financing Assumptions
C17: Target DSCR | E17: =H17/10 -> 1.5 | H17: 15
E18: 0 | F18: 1 | H18: 5 | I18: 10
C19: Interest Rate | E19: 0.03 | F19: 0.0325 | H19: 0.035 | I19: 0.0375
C20: Grace Period | E20: 0
C21: Tenor | E21: 6
C22: Max Debt to Capital | E22: =H22/100 -> 0.77 | H22: 77
C23: Sculpting | E23: TRUE
C24: Equal Instrallment | E24: =NOT(E23) -> FALSE
A26: Debt Size
C27: Max Debt to Cap | E27: =E22*H5 -> 770
C28: DSCR Target | E28: =F46 -> 319.1151762
D29: Final | E29: =MIN(E27:E28) -> 319.1151762
D30: Method | E30: =IF(E29<>E27,"DSCR","Max Gear") -> DSCR
C33: EBITDA | I33: =I8 -> 85 | J33: =J8 -> 86.7 | K33: 88.434 | L33: 90.20268 | M33: 92.0067336 | N33: 93.84686827 | O33: 95.72380564 | P33: 97.63828175 | Q33: 99.59104739 | R33: 101.5828683 | S33: 103.6145257 | T33: 105.6868162 | U33: 107.8005525 | V33: 109.9565636 | W33: 112.1556949 | X33: 114.3988088 | Y33: 116.6867849 | Z33: 119.0205206 | AA33: 121.400931 | AB33: 123.8289497 | AC33: 126.3055287 | AD33: 128.8316392 | AE33: 131.408272 | AF33: 134.0364375 | AG33: 136.7171662 | AH33: 139.4515095 | AI33: 142.2405397 | AJ33: 145.0853505 | AK33: 147.9870575 | AL33: 150.9467987
C34: Less: Taxes | I34: =I68 -> 0 | J34: =J68 -> 0 | K34: 0 | L34: 0 | M34: 0 | N34: 0 | O34: 0 | P34: 0 | Q34: 0 | R34: 0 | S34: 0 | T34: 0 | U34: 0 | V34: 0 | W34: 0 | X34: 0 | Y34: 0 | Z34: 0 | AA34: 0 | AB34: 0 | AC34: 0 | AD34: 0 | AE34: 0 | AF34: 0 | AG34: 0 | AH34: 0 | AI34: 0 | AJ34: 0 | AK34: 0 | AL34: 0
C35: CFADS | I35: =I33-I34 -> 85 | J35: =J33-J34 -> 86.7 | K35: 88.434 | L35: 90.20268 | M35: 92.0067336 | N35: 93.84686827 | O35: 95.72380564 | P35: 97.63828175 | Q35: 99.59104739 | R35: 101.5828683 | S35: 103.6145257 | T35: 105.6868162 | U35: 107.8005525 | V35: 109.9565636 | W35: 112.1556949 | X35: 114.3988088 | Y35: 116.6867849 | Z35: 119.0205206 | AA35: 121.400931 | AB35: 123.8289497 | AC35: 126.3055287 | AD35: 128.8316392 | AE35: 131.408272 | AF35: 134.0364375 | AG35: 136.7171662 | AH35: 139.4515095 | AI35: 142.2405397 | AJ35: 145.0853505 | AK35: 147.9870575 | AL35: 150.9467987
C37: Cash Flow over Repayment Period | I37: =IF(I4,I35) -> 85 | J37: =IF(J4,J35) -> 86.7 | K37: 88.434 | L37: 90.20268 | M37: 92.0067336 | N37: 93.84686827 | O37: FALSE | P37: FALSE | Q37: FALSE | R37: FALSE | S37: FALSE | T37: FALSE | U37: FALSE | V37: FALSE | W37: FALSE | X37: FALSE | Y37: FALSE | Z37: FALSE | AA37: FALSE | AB37: FALSE | AC37: FALSE | AD37: FALSE | AE37: FALSE | AF37: FALSE | AG37: FALSE | AH37: FALSE | AI37: FALSE | AJ37: FALSE | AK37: FALSE | AL37: FALSE
C38: Interest Rate | I38: =LOOKUP(I3,18:18,19:19) -> 0.0325 | J38: 0.0325 | K38: 0.0325 | L38: 0.0325 | M38: 0.035 | N38: 0.035 | O38: 0.035 | P38: 0.035 | Q38: 0.035 | R38: 0.0375 | S38: 0.0375 | T38: 0.0375 | U38: 0.0375 | V38: 0.0375 | W38: 0.0375 | X38: 0.0375 | Y38: 0.0375 | Z38: 0.0375 | AA38: 0.0375 | AB38: 0.0375 | AC38: 0.0375 | AD38: 0.0375 | AE38: 0.0375 | AF38: 0.0375 | AG38: 0.0375 | AH38: 0.0375 | AI38: 0.0375 | AJ38: 0.0375 | AK38: 0.0375 | AL38: 0.0375
C39: Interest Rate Index | H39: 1 | I39: =H39*(1+I38*I4) -> 1.0325 | J39: =I39*(1+J38*J4) -> 1.06605625 | K39: 1.100703078 | L39: 1.136475928 | M39: 1.176252586 | N39: 1.217421426 | O39: 1.217421426 | P39: 1.217421426 | Q39: 1.217421426 | R39: 1.217421426 | S39: 1.217421426 | T39: 1.217421426 | U39: 1.217421426 | V39: 1.217421426 | W39: 1.217421426 | X39: 1.217421426 | Y39: 1.217421426 | Z39: 1.217421426 | AA39: 1.217421426 | AB39: 1.217421426 | AC39: 1.217421426 | AD39: 1.217421426 | AE39: 1.217421426 | AF39: 1.217421426 | AG39: 1.217421426 | AH39: 1.217421426 | AI39: 1.217421426 | AJ39: 1.217421426 | AK39: 1.217421426 | AL39: 1.217421426
C40: NPV of Cash Flow over Repayment Period | F40: =SUMPRODUCT(I37:AL37/I39:AL39) -> 478.6727642
C41: LLCR Using Max Debt to Cap | E41: =F40/E27 -> 0.6216529406
C42: Target DSCR Applied | E42: =MAX(E41,E17) -> 1.5
E43: Computed | F43: Fixed | G43: Difference
C44: Target Debt Service | E44: =E42 -> 1.5 | F44: 1.5 | G44: =E44-F44 -> 0 | I44: =IF(I4,I37/$F$44) -> 56.66666667 | J44: =IF(J4,J37/$F$44) -> 57.8 | K44: 58.956 | L44: 60.13512 | M44: 61.3378224 | N44: 62.56457885 | O44: FALSE | P44: FALSE | Q44: FALSE | R44: FALSE | S44: FALSE | T44: FALSE | U44: FALSE | V44: FALSE | W44: FALSE | X44: FALSE | Y44: FALSE | Z44: FALSE | AA44: FALSE | AB44: FALSE | AC44: FALSE | AD44: FALSE | AE44: FALSE | AF44: FALSE | AG44: FALSE | AH44: FALSE | AI44: FALSE | AJ44: FALSE | AK44: FALSE | AL44: FALSE
E45: Comp 1 | F45: Fix 1 | G45: Diff 1 | H45: Total Dif
C46: NPV of Debt Service | E46: =SUMPRODUCT(I44:AL44/I39:AL39) -> 319.1151762 | F46: 319.1151762 | G46: =F46-E46 -> 0 | H46: =ABS(Diff_1)+ABS(Difference) -> 0
A48: Project Finance Model
B49: Cap Exp | H49: =H5 -> 1000
B50: Debt | H50: =E29 -> 319.1151762
B51: Equity | H51: =H49-H50 -> 680.8848238
B53: Debt
C54: Opening Balance | I54: =H56 -> 319.1151762 | J54: =I56 -> 272.8197527 | K54: 223.8863947 | L54: 172.2067025 | M54: 117.6683003 | N54: 60.44886845 | O54: 1.065814104e-13 | P54: 1.065814104e-13 | Q54: 1.065814104e-13 | R54: 1.065814104e-13 | S54: 1.065814104e-13 | T54: 1.065814104e-13 | U54: 1.065814104e-13 | V54: 1.065814104e-13 | W54: 1.065814104e-13 | X54: 1.065814104e-13 | Y54: 1.065814104e-13 | Z54: 1.065814104e-13 | AA54: 1.065814104e-13 | AB54: 1.065814104e-13 | AC54: 1.065814104e-13 | AD54: 1.065814104e-13 | AE54: 1.065814104e-13 | AF54: 1.065814104e-13 | AG54: 1.065814104e-13 | AH54: 1.065814104e-13 | AI54: 1.065814104e-13 | AJ54: 1.065814104e-13 | AK54: 1.065814104e-13 | AL54: 1.065814104e-13
C55: Less: Repayment | I55: =(I44-I58)*I4 -> 46.29542344 | J55: =(J44-J58)*J4 -> 48.93335804 | K55: 51.67969217 | L55: 54.53840217 | M55: 57.21943189 | N55: 60.44886845 | O55: 0 | P55: 0 | Q55: 0 | R55: 0 | S55: 0 | T55: 0 | U55: 0 | V55: 0 | W55: 0 | X55: 0 | Y55: 0 | Z55: 0 | AA55: 0 | AB55: 0 | AC55: 0 | AD55: 0 | AE55: 0 | AF55: 0 | AG55: 0 | AH55: 0 | AI55: 0 | AJ55: 0 | AK55: 0 | AL55: 0
C56: Closing Balance | H56: =H50 -> 319.1151762 | I56: =I54-I55 -> 272.8197527 | J56: =J54-J55 -> 223.8863947 | K56: 172.2067025 | L56: 117.6683003 | M56: 60.44886845 | N56: 1.065814104e-13 | O56: 1.065814104e-13 | P56: 1.065814104e-13 | Q56: 1.065814104e-13 | R56: 1.065814104e-13 | S56: 1.065814104e-13 | T56: 1.065814104e-13 | U56: 1.065814104e-13 | V56: 1.065814104e-13 | W56: 1.065814104e-13 | X56: 1.065814104e-13 | Y56: 1.065814104e-13 | Z56: 1.065814104e-13 | AA56: 1.065814104e-13 | AB56: 1.065814104e-13 | AC56: 1.065814104e-13 | AD56: 1.065814104e-13 | AE56: 1.065814104e-13 | AF56: 1.065814104e-13 | AG56: 1.065814104e-13 | AH56: 1.065814104e-13 | AI56: 1.065814104e-13 | AJ56: 1.065814104e-13 | AK56: 1.065814104e-13 | AL56: 1.065814104e-13
C57: Interest Rate | I57: =LOOKUP(I3,18:18,19:19) -> 0.0325 | J57: 0.0325 | K57: 0.0325 | L57: 0.0325 | M57: 0.035 | N57: 0.035 | O57: 0.035 | P57: 0.035 | Q57: 0.035 | R57: 0.0375 | S57: 0.0375 | T57: 0.0375 | U57: 0.0375 | V57: 0.0375 | W57: 0.0375 | X57: 0.0375 | Y57: 0.0375 | Z57: 0.0375 | AA57: 0.0375 | AB57: 0.0375 | AC57: 0.0375 | AD57: 0.0375 | AE57: 0.0375 | AF57: 0.0375 | AG57: 0.0375 | AH57: 0.0375 | AI57: 0.0375 | AJ57: 0.0375 | AK57: 0.0375 | AL57: 0.0375
C58: Interest Expense | I58: =I57*I54 -> 10.37124323 | J58: =J57*J54 -> 8.866641963 | K58: 7.276307827 | L58: 5.596717832 | M58: 4.118390512 | N58: 2.115710396 | O58: 3.730349363e-15 | P58: 3.730349363e-15 | Q58: 3.730349363e-15 | R58: 3.996802889e-15 | S58: 3.996802889e-15 | T58: 3.996802889e-15 | U58: 3.996802889e-15 | V58: 3.996802889e-15 | W58: 3.996802889e-15 | X58: 3.996802889e-15 | Y58: 3.996802889e-15 | Z58: 3.996802889e-15 | AA58: 3.996802889e-15 | AB58: 3.996802889e-15 | AC58: 3.996802889e-15 | AD58: 3.996802889e-15 | AE58: 3.996802889e-15 | AF58: 3.996802889e-15 | AG58: 3.996802889e-15 | AH58: 3.996802889e-15 | AI58: 3.996802889e-15 | AJ58: 3.996802889e-15 | AK58: 3.996802889e-15 | AL58: 3.996802889e-15
F59: =">"&F4 -> >6
C60: Ending Balance Test | F60: =ROUND(SUMIF(3:3,F59,56:56),3)=0 -> TRUE
A62: Profit and Loss
B63: EBITDA | I63: =I7 -> 85 | J63: =J7 -> 86.7 | K63: 88.434 | L63: 90.20268 | M63: 92.0067336 | N63: 93.84686827 | O63: 95.72380564 | P63: 97.63828175 | Q63: 99.59104739 | R63: 101.5828683 | S63: 103.6145257 | T63: 105.6868162 | U63: 107.8005525 | V63: 109.9565636 | W63: 112.1556949 | X63: 114.3988088 | Y63: 116.6867849 | Z63: 119.0205206 | AA63: 121.400931 | AB63: 123.8289497 | AC63: 126.3055287 | AD63: 128.8316392 | AE63: 131.408272 | AF63: 134.0364375 | AG63: 136.7171662 | AH63: 139.4515095 | AI63: 142.2405397 | AJ63: 145.0853505 | AK63: 147.9870575 | AL63: 150.9467987
B64: Less: Depreciation | I64: =I14 -> 200 | J64: =J14 -> 200 | K64: 200 | L64: 200 | M64: 200 | N64: 0 | O64: 0 | P64: 0 | Q64: 0 | R64: 0 | S64: 0 | T64: 0 | U64: 0 | V64: 0 | W64: 0 | X64: 0 | Y64: 0 | Z64: 0 | AA64: 0 | AB64: 0 | AC64: 0 | AD64: 0 | AE64: 0 | AF64: 0 | AG64: 0 | AH64: 0 | AI64: 0 | AJ64: 0 | AK64: 0 | AL64: 0
B65: EBIT | I65: =I63-I64 -> -115 | J65: =J63-J64 -> -113.3 | K65: -111.566 | L65: -109.79732 | M65: -107.9932664 | N65: 93.84686827 | O65: 95.72380564 | P65: 97.63828175 | Q65: 99.59104739 | R65: 101.5828683 | S65: 103.6145257 | T65: 105.6868162 | U65: 107.8005525 | V65: 109.9565636 | W65: 112.1556949 | X65: 114.3988088 | Y65: 116.6867849 | Z65: 119.0205206 | AA65: 121.400931 | AB65: 123.8289497 | AC65: 126.3055287 | AD65: 128.8316392 | AE65: 131.408272 | AF65: 134.0364375 | AG65: 136.7171662 | AH65: 139.4515095 | AI65: 142.2405397 | AJ65: 145.0853505 | AK65: 147.9870575 | AL65: 150.9467987
B66: Less: Interest Expense | I66: =I58 -> 10.37124323 | J66: =J58 -> 8.866641963 | K66: 7.276307827 | L66: 5.596717832 | M66: 4.118390512 | N66: 2.115710396 | O66: 3.730349363e-15 | P66: 3.730349363e-15 | Q66: 3.730349363e-15 | R66: 3.996802889e-15 | S66: 3.996802889e-15 | T66: 3.996802889e-15 | U66: 3.996802889e-15 | V66: 3.996802889e-15 | W66: 3.996802889e-15 | X66: 3.996802889e-15 | Y66: 3.996802889e-15 | Z66: 3.996802889e-15 | AA66: 3.996802889e-15 | AB66: 3.996802889e-15 | AC66: 3.996802889e-15 | AD66: 3.996802889e-15 | AE66: 3.996802889e-15 | AF66: 3.996802889e-15 | AG66: 3.996802889e-15 | AH66: 3.996802889e-15 | AI66: 3.996802889e-15 | AJ66: 3.996802889e-15 | AK66: 3.996802889e-15 | AL66: 3.996802889e-15
B67: EBT | I67: =I65-I66 -> -125.3712432 | J67: =J65-J66 -> -122.166642 | K67: -118.8423078 | L67: -115.3940378 | M67: -112.1116569 | N67: 91.73115788 | O67: 95.72380564 | P67: 97.63828175 | Q67: 99.59104739 | R67: 101.5828683 | S67: 103.6145257 | T67: 105.6868162 | U67: 107.8005525 | V67: 109.9565636 | W67: 112.1556949 | X67: 114.3988088 | Y67: 116.6867849 | Z67: 119.0205206 | AA67: 121.400931 | AB67: 123.8289497 | AC67: 126.3055287 | AD67: 128.8316392 | AE67: 131.408272 | AF67: 134.0364375 | AG67: 136.7171662 | AH67: 139.4515095 | AI67: 142.2405397 | AJ67: 145.0853505 | AK67: 147.9870575 | AL67: 150.9467987
B68: Taxes | F68: =E13 -> 0 | I68: =$F$68*I67 -> 0 | J68: =$F$68*J67 -> 0 | K68: 0 | L68: 0 | M68: 0 | N68: 0 | O68: 0 | P68: 0 | Q68: 0 | R68: 0 | S68: 0 | T68: 0 | U68: 0 | V68: 0 | W68: 0 | X68: 0 | Y68: 0 | Z68: 0 | AA68: 0 | AB68: 0 | AC68: 0 | AD68: 0 | AE68: 0 | AF68: 0 | AG68: 0 | AH68: 0 | AI68: 0 | AJ68: 0 | AK68: 0 | AL68: 0
A71: DSCR
B72: Cash Flow | I72: =I35 -> 85 | J72: =J35 -> 86.7 | K72: 88.434 | L72: 90.20268 | M72: 92.0067336 | N72: 93.84686827 | O72: 95.72380564 | P72: 97.63828175 | Q72: 99.59104739 | R72: 101.5828683 | S72: 103.6145257 | T72: 105.6868162 | U72: 107.8005525 | V72: 109.9565636 | W72: 112.1556949 | X72: 114.3988088 | Y72: 116.6867849 | Z72: 119.0205206 | AA72: 121.400931 | AB72: 123.8289497 | AC72: 126.3055287 | AD72: 128.8316392 | AE72: 131.408272 | AF72: 134.0364375 | AG72: 136.7171662 | AH72: 139.4515095 | AI72: 142.2405397 | AJ72: 145.0853505 | AK72: 147.9870575 | AL72: 150.9467987
B73: Debt Service | I73: =I55+I58 -> 56.66666667 | J73: =J55+J58 -> 57.8 | K73: 58.956 | L73: 60.13512 | M73: 61.3378224 | N73: 62.56457885 | O73: 3.730349363e-15 | P73: 3.730349363e-15 | Q73: 3.730349363e-15 | R73: 3.996802889e-15 | S73: 3.996802889e-15 | T73: 3.996802889e-15 | U73: 3.996802889e-15 | V73: 3.996802889e-15 | W73: 3.996802889e-15 | X73: 3.996802889e-15 | Y73: 3.996802889e-15 | Z73: 3.996802889e-15 | AA73: 3.996802889e-15 | AB73: 3.996802889e-15 | AC73: 3.996802889e-15 | AD73: 3.996802889e-15 | AE73: 3.996802889e-15 | AF73: 3.996802889e-15 | AG73: 3.996802889e-15 | AH73: 3.996802889e-15 | AI73: 3.996802889e-15 | AJ73: 3.996802889e-15 | AK73: 3.996802889e-15 | AL73: 3.996802889e-15
C74: DSCR | I74: =IF(I73>0.1,I72/I73) -> 1.5 | J74: =IF(J73>0.1,J72/J73) -> 1.5 | K74: 1.5 | L74: 1.5 | M74: 1.5 | N74: 1.5 | O74: FALSE | P74: FALSE | Q74: FALSE | R74: FALSE | S74: FALSE | T74: FALSE | U74: FALSE | V74: FALSE | W74: FALSE | X74: FALSE | Y74: FALSE | Z74: FALSE | AA74: FALSE | AB74: FALSE | AC74: FALSE | AD74: FALSE | AE74: FALSE | AF74: FALSE | AG74: FALSE | AH74: FALSE | AI74: FALSE | AJ74: FALSE | AK74: FALSE | AL74: FALSE
A76: Equity Return
B77: Equity Cash Flow | H77: =-H51 -> -680.8848238 | I77: =I7-I55-I58 -> 28.33333333 | J77: =J7-J55-J58 -> 28.9 | K77: 29.478 | L77: 30.06756 | M77: 30.6689112 | N77: 31.28228942 | O77: 95.72380564 | P77: 97.63828175 | Q77: 99.59104739 | R77: 101.5828683 | S77: 103.6145257 | T77: 105.6868162 | U77: 107.8005525 | V77: 109.9565636 | W77: 112.1556949 | X77: 114.3988088 | Y77: 116.6867849 | Z77: 119.0205206 | AA77: 121.400931 | AB77: 123.8289497 | AC77: 126.3055287 | AD77: 128.8316392 | AE77: 131.408272 | AF77: 134.0364375 | AG77: 136.7171662 | AH77: 139.4515095 | AI77: 142.2405397 | AJ77: 145.0853505 | AK77: 147.9870575 | AL77: 150.9467987
B78: Equity IRR | E78: =IRR(77:77) -> 0.1016552617
D80: Project IRR | E80: =E9 -> 0.09483965339 | J80: DSCR | L80: =E17 -> 1.5
D81: EBITDA | E81: =I7 -> 85 | J81: Debt to Capital | L81: =E22 -> 0.77
D82: Debt Size | E82: =E29 -> 319.1151762 | J82: Grace Period | L82: =E20 -> 0
D83: Equity IRR | E83: =E78 -> 0.1016552617 | J83: Tenor | L83: =E21 -> 6
E87: EBITDA
D97: Method: | E97: =E30 -> DSCR

Sheet No Taxes
A1: Sculpting and Grace Periods
B2: Operations
C3: Period | G3: 0 | H3: 1 | I3: 2 | J3: 3 | K3: 4 | L3: 5 | M3: 6 | N3: 7 | O3: 8 | P3: 9 | Q3: 10 | R3: 11 | S3: 12 | T3: 13 | U3: 14 | V3: 15 | W3: 16 | X3: 17 | Y3: 18 | Z3: 19 | AA3: 20 | AB3: 21 | AC3: 22 | AD3: 23 | AE3: 24 | AF3: 25 | AG3: 26 | AH3: 27 | AI3: 28 | AJ3: 29 | AK3: 30
C4: Repayment Switch | E4: =E20 -> 3 | F4: =E4+E21 -> 22 | G4: =COUNTIF(H4:AK4,TRUE) -> 19 | H4: =AND(H3>$E$4,H3<=$F$4) -> FALSE | I4: =AND(I3>$E$4,I3<=$F$4) -> FALSE | J4: FALSE | K4: TRUE | L4: TRUE | M4: TRUE | N4: TRUE | O4: TRUE | P4: TRUE | Q4: TRUE | R4: TRUE | S4: TRUE | T4: TRUE | U4: TRUE | V4: TRUE | W4: TRUE | X4: TRUE | Y4: TRUE | Z4: TRUE | AA4: TRUE | AB4: TRUE | AC4: TRUE | AD4: FALSE | AE4: FALSE | AF4: FALSE | AG4: FALSE | AH4: FALSE | AI4: FALSE | AJ4: FALSE | AK4: FALSE
C5: Capital Expenditures | G5: 1000
C6: Growth | G6: 0.02
C7: EBITDA | H7: 100 | I7: =H7*(1+$G$6) -> 102 | J7: =I7*(1+$G$6) -> 104.04 | K7: 106.1208 | L7: 108.243216 | M7: 110.4080803 | N7: 112.6162419 | O7: 114.8685668 | P7: 117.1659381 | Q7: 119.5092569 | R7: 121.899442 | S7: 124.3374308 | T7: 126.8241795 | U7: 129.360663 | V7: 131.9478763 | W7: 134.5868338 | X7: 137.2785705 | Y7: 140.0241419 | Z7: 142.8246248 | AA7: 145.6811173 | AB7: 148.5947396 | AC7: 151.5666344 | AD7: 154.5979671 | AE7: 157.6899264 | AF7: 160.8437249 | AG7: 164.0605994 | AH7: 167.3418114 | AI7: 170.6886477 | AJ7: 174.1024206 | AK7: 177.584469
C8: Net Cash Flow | G8: =G7-G5 -> -1000 | H8: =H7-H5 -> 100 | I8: 102 | J8: 104.04 | K8: 106.1208 | L8: 108.243216 | M8: 110.4080803 | N8: 112.6162419 | O8: 114.8685668 | P8: 117.1659381 | Q8: 119.5092569 | R8: 121.899442 | S8: 124.3374308 | T8: 126.8241795 | U8: 129.360663 | V8: 131.9478763 | W8: 134.5868338 | X8: 137.2785705 | Y8: 140.0241419 | Z8: 142.8246248 | AA8: 145.6811173 | AB8: 148.5947396 | AC8: 151.5666344 | AD8: 154.5979671 | AE8: 157.6899264 | AF8: 160.8437249 | AG8: 164.0605994 | AH8: 167.3418114 | AI8: 170.6886477 | AJ8: 174.1024206 | AK8: 177.584469
C9: Project IRR | E9: =IRR(8:8) -> 0.1126296888
A11: Taxes
C12: Depreciation | E12: 18 | H12: =H3<=$E$12 -> TRUE | I12: =I3<=$E$12 -> TRUE | J12: TRUE | K12: TRUE | L12: TRUE | M12: TRUE | N12: TRUE | O12: TRUE | P12: TRUE | Q12: TRUE | R12: TRUE | S12: TRUE | T12: TRUE | U12: TRUE | V12: TRUE | W12: TRUE | X12: TRUE | Y12: TRUE | Z12: FALSE | AA12: FALSE | AB12: FALSE | AC12: FALSE | AD12: FALSE | AE12: FALSE | AF12: FALSE | AG12: FALSE | AH12: FALSE | AI12: FALSE | AJ12: FALSE | AK12: FALSE
C13: Taxes | E13: 0
C14: Depreciation Expense | H14: =$G$5/$E$12*H12 -> 55.55555556 | I14: 55.55555556 | J14: 55.55555556 | K14: 55.55555556 | L14: 55.55555556 | M14: 55.55555556 | N14: 55.55555556 | O14: 55.55555556 | P14: 55.55555556 | Q14: 55.55555556 | R14: 55.55555556 | S14: 55.55555556 | T14: 55.55555556 | U14: 55.55555556 | V14: 55.55555556 | W14: 55.55555556 | X14: 55.55555556 | Y14: 55.55555556 | Z14: 0 | AA14: 0 | AB14: 0 | AC14: 0 | AD14: 0 | AE14: 0 | AF14: 0 | AG14: =$G$5/$E$12*AG12 -> 0 | AH14: 0 | AI14: 0 | AJ14: 0 | AK14: 0
B16: Financing Assumptions
C17: Target DSCR | E17: =G17/10 -> 1.3 | G17: 13
E18: 0 | F18: 1 | G18: 5 | H18: 10
C19: Interest Rate | E19: 0.03 | F19: 0.0325 | G19: 0.035 | H19: 0.0375
C20: Grace Period | E20: 3
C21: Tenor | E21: 19
C22: Max Debt to Capital | E22: =G22/100 -> 0.79 | G22: 79
C23: Sculpting | E23: TRUE
C24: Equal Instrallment | E24: =NOT(E23) -> FALSE
A26: Debt Size
C27: Max Debt to Cap | E27: =E22*G5 -> 790
C28: DSCR Target | E28: =F41 -> 790
D29: Final | E29: =MIN(E27:E28) -> 790
D30: Method | E30: =IF(E29<>E27,"DSCR","Max Gear") -> Max Gear
C33: Cash Flow over Repayment | H33: =IF(H4,H7) -> FALSE | I33: =IF(I4,I7) -> FALSE | J33: FALSE | K33: 106.1208 | L33: 108.243216 | M33: 110.4080803 | N33: 112.6162419 | O33: 114.8685668 | P33: 117.1659381 | Q33: 119.5092569 | R33: 121.899442 | S33: 124.3374308 | T33: 126.8241795 | U33: 129.360663 | V33: 131.9478763 | W33: 134.5868338 | X33: 137.2785705 | Y33: 140.0241419 | Z33: 142.8246248 | AA33: 145.6811173 | AB33: 148.5947396 | AC33: 151.5666344 | AD33: FALSE | AE33: FALSE | AF33: FALSE | AG33: FALSE | AH33: FALSE | AI33: FALSE | AJ33: FALSE | AK33: FALSE
C34: Interest Rate | H34: =LOOKUP(H3,18:18,19:19) -> 0.0325 | I34: =LOOKUP(I3,18:18,19:19) -> 0.0325 | J34: 0.0325 | K34: 0.0325 | L34: 0.035 | M34: 0.035 | N34: 0.035 | O34: 0.035 | P34: 0.035 | Q34: 0.0375 | R34: 0.0375 | S34: 0.0375 | T34: 0.0375 | U34: 0.0375 | V34: 0.0375 | W34: 0.0375 | X34: 0.0375 | Y34: 0.0375 | Z34: 0.0375 | AA34: 0.0375 | AB34: 0.0375 | AC34: 0.0375 | AD34: 0.0375 | AE34: 0.0375 | AF34: 0.0375 | AG34: 0.0375 | AH34: 0.0375 | AI34: 0.0375 | AJ34: 0.0375 | AK34: 0.0375
C35: Interest Rate Index | G35: 1 | H35: =G35*(1+H34*H4) -> 1 | I35: =H35*(1+I34*I4) -> 1 | J35: 1 | K35: 1.0325 | L35: 1.0686375 | M35: 1.106039812 | N35: 1.144751206 | O35: 1.184817498 | P35: 1.226286111 | Q35: 1.27227184 | R35: 1.319982034 | S35: 1.36948136 | T35: 1.420836911 | U35: 1.474118295 | V35: 1.529397731 | W35: 1.586750146 | X35: 1.646253277 | Y35: 1.707987774 | Z35: 1.772037316 | AA35: 1.838488715 | AB35: 1.907432042 | AC35: 1.978960744 | AD35: 1.978960744 | AE35: 1.978960744 | AF35: 1.978960744 | AG35: 1.978960744 | AH35: 1.978960744 | AI35: 1.978960744 | AJ35: 1.978960744 | AK35: 1.978960744
C36: NPV of Cash Flow over Repayment Period | E36: =SUMPRODUCT(H33:AK33/H35:AK35) -> 1699.650359
C37: LLCR Using Max Debt to Cap | E37: =E36/E27 -> 2.151456151
C38: Target DSCR Applied | E38: =MAX(E37,E17) -> 2.151456151
C40: Target Debt Service | F40: =E38 -> 2.151456151 | H40: =IF(H4,H7/$F$40) -> FALSE | I40: =IF(I4,I7/$F$40) -> FALSE | J40: FALSE | K40: 49.32510475 | L40: 50.31160685 | M40: 51.31783898 | N40: 52.34419576 | O40: 53.39107968 | P40: 54.45890127 | Q40: 55.5480793 | R40: 56.65904088 | S40: 57.7922217 | T40: 58.94806613 | U40: 60.12702746 | V40: 61.32956801 | W40: 62.55615937 | X40: 63.80728255 | Y40: 65.0834282 | Z40: 66.38509677 | AA40: 67.7127987 | AB40: 69.06705468 | AC40: 70.44839577 | AD40: FALSE | AE40: FALSE | AF40: FALSE | AG40: FALSE | AH40: FALSE | AI40: FALSE | AJ40: FALSE | AK40: FALSE
C41: NPV of Debt Service | F41: =SUMPRODUCT(H40:AK40/H35:AK35) -> 790
A43: Project Finance Model
B44: Cap Exp | G44: =G5 -> 1000
B45: Debt | G45: =E29 -> 790
B46: Equity | G46: =G44-G45 -> 210
B48: Debt
C49: Opening Balance | H49: =G51 -> 790 | I49: =H51 -> 790 | J49: 790 | K49: 790 | L49: 766.3498952 | M49: 742.8605347 | N49: 717.5428145 | O49: 690.3126172 | P49: 661.0824791 | Q49: 629.7614646 | R49: 597.8294403 | S49: 563.5890034 | T49: 526.9313693 | U49: 487.7432295 | V49: 445.9065732 | W49: 401.2985017 | X49: 353.7910361 | Y49: 303.2509174 | Z49: 249.5393986 | AA49: 192.5120293 | AB49: 132.0184317 | AC49: 67.90206821 | AD49: -1.98951966e-13 | AE49: -1.98951966e-13 | AF49: -1.98951966e-13 | AG49: -1.98951966e-13 | AH49: -1.98951966e-13 | AI49: -1.98951966e-13 | AJ49: -1.98951966e-13 | AK49: -1.98951966e-13
C50: Less: Repayment | H50: =(H40-H53)*H4 -> 0 | I50: =(I40-I53)*I4 -> 0 | J50: 0 | K50: 23.65010475 | L50: 23.48936051 | M50: 25.31772027 | N50: 27.23019726 | O50: 29.23013807 | P50: 31.3210145 | Q50: 31.93202437 | R50: 34.24043687 | S50: 36.65763407 | T50: 39.18813978 | U50: 41.83665635 | V50: 44.60807151 | W50: 47.50746555 | X50: 50.5401187 | Y50: 53.7115188 | Z50: 57.02736932 | AA50: 60.4935976 | AB50: 64.11636349 | AC50: 67.90206821 | AD50: 0 | AE50: 0 | AF50: 0 | AG50: 0 | AH50: 0 | AI50: 0 | AJ50: 0 | AK50: 0
C51: Closing Balance | G51: =G45 -> 790 | H51: =H49-H50 -> 790 | I51: =I49-I50 -> 790 | J51: 790 | K51: 766.3498952 | L51: 742.8605347 | M51: 717.5428145 | N51: 690.3126172 | O51: 661.0824791 | P51: 629.7614646 | Q51: 597.8294403 | R51: 563.5890034 | S51: 526.9313693 | T51: 487.7432295 | U51: 445.9065732 | V51: 401.2985017 | W51: 353.7910361 | X51: 303.2509174 | Y51: 249.5393986 | Z51: 192.5120293 | AA51: 132.0184317 | AB51: 67.90206821 | AC51: -1.98951966e-13 | AD51: -1.98951966e-13 | AE51: -1.98951966e-13 | AF51: -1.98951966e-13 | AG51: -1.98951966e-13 | AH51: -1.98951966e-13 | AI51: -1.98951966e-13 | AJ51: -1.98951966e-13 | AK51: -1.98951966e-13
C52: Interest Rate | H52: =LOOKUP(H3,18:18,19:19) -> 0.0325 | I52: =LOOKUP(I3,18:18,19:19) -> 0.0325 | J52: 0.0325 | K52: 0.0325 | L52: 0.035 | M52: 0.035 | N52: 0.035 | O52: 0.035 | P52: 0.035 | Q52: 0.0375 | R52: 0.0375 | S52: 0.0375 | T52: 0.0375 | U52: 0.0375 | V52: 0.0375 | W52: 0.0375 | X52: 0.0375 | Y52: 0.0375 | Z52: 0.0375 | AA52: 0.0375 | AB52: 0.0375 | AC52: 0.0375 | AD52: 0.0375 | AE52: 0.0375 | AF52: 0.0375 | AG52: 0.0375 | AH52: 0.0375 | AI52: 0.0375 | AJ52: 0.0375 | AK52: 0.0375
C53: Interest Expense | H53: =H52*H49 -> 25.675 | I53: =I52*I49 -> 25.675 | J53: 25.675 | K53: 25.675 | L53: 26.82224633 | M53: 26.00011872 | N53: 25.11399851 | O53: 24.1609416 | P53: 23.13788677 | Q53: 23.61605492 | R53: 22.41860401 | S53: 21.13458763 | T53: 19.75992635 | U53: 18.29037111 | V53: 16.72149649 | W53: 15.04869381 | X53: 13.26716385 | Y53: 11.3719094 | Z53: 9.357727448 | AA53: 7.219201099 | AB53: 4.950691189 | AC53: 2.546327558 | AD53: -7.460698725e-15 | AE53: -7.460698725e-15 | AF53: -7.460698725e-15 | AG53: -7.460698725e-15 | AH53: -7.460698725e-15 | AI53: -7.460698725e-15 | AJ53: -7.460698725e-15 | AK53: -7.460698725e-15
F54: =">"&F4 -> >22
C55: Ending Balance Test | F55: =ROUND(SUMIF(3:3,F54,51:51),3)=0 -> TRUE
A57: DSCR
B58: Cash Flow | H58: =H7 -> 100 | I58: =I7 -> 102 | J58: 104.04 | K58: 106.1208 | L58: 108.243216 | M58: 110.4080803 | N58: 112.6162419 | O58: 114.8685668 | P58: 117.1659381 | Q58: 119.5092569 | R58: 121.899442 | S58: 124.3374308 | T58: 126.8241795 | U58: 129.360663 | V58: 131.9478763 | W58: 134.5868338 | X58: 137.2785705 | Y58: 140.0241419 | Z58: 142.8246248 | AA58: 145.6811173 | AB58: 148.5947396 | AC58: 151.5666344 | AD58: 154.5979671 | AE58: 157.6899264 | AF58: 160.8437249 | AG58: 164.0605994 | AH58: 167.3418114 | AI58: 170.6886477 | AJ58: 174.1024206 | AK58: 177.584469
B59: Debt Service | H59: =H50+H53 -> 25.675 | I59: =I50+I53 -> 25.675 | J59: 25.675 | K59: 49.32510475 | L59: 50.31160685 | M59: 51.31783898 | N59: 52.34419576 | O59: 53.39107968 | P59: 54.45890127 | Q59: 55.5480793 | R59: 56.65904088 | S59: 57.7922217 | T59: 58.94806613 | U59: 60.12702746 | V59: 61.32956801 | W59: 62.55615937 | X59: 63.80728255 | Y59: 65.0834282 | Z59: 66.38509677 | AA59: 67.7127987 | AB59: 69.06705468 | AC59: 70.44839577 | AD59: -7.460698725e-15 | AE59: -7.460698725e-15 | AF59: -7.460698725e-15 | AG59: -7.460698725e-15 | AH59: -7.460698725e-15 | AI59: -7.460698725e-15 | AJ59: -7.460698725e-15 | AK59: -7.460698725e-15
A61: Equity Return
B62: Equity Cash Flow | G62: =-G46 -> -210 | H62: =H7-H50-H53 -> 74.325 | I62: =I7-I50-I53 -> 76.325 | J62: 78.365 | K62: 56.79569525 | L62: 57.93160915 | M62: 59.09024134 | N62: 60.27204616 | O62: 61.47748709 | P62: 62.70703683 | Q62: 63.96117757 | R62: 65.24040112 | S62: 66.54520914 | T62: 67.87611332 | U62: 69.23363559 | V62: 70.6183083 | W62: 72.03067447 | X62: 73.47128796 | Y62: 74.94071372 | Z62: 76.43952799 | AA62: 77.96831855 | AB62: 79.52768492 | AC62: 81.11823862 | AD62: 154.5979671 | AE62: 157.6899264 | AF62: 160.8437249 | AG62: 164.0605994 | AH62: 167.3418114 | AI62: 170.6886477 | AJ62: 174.1024206 | AK62: 177.584469
B63: Equity IRR | E63: =IRR(62:62) -> 0.3308821352
D65: Project IRR | E65: =E9 -> 0.1126296888 | I65: DSCR | K65: =E17 -> 1.3
D66: EBITDA | E66: =H7 -> 100 | I66: Debt to Capital | K66: =E22 -> 0.79
D67: Debt Size | E67: =E29 -> 790 | I67: Grace Period | K67: =E20 -> 3
D68: Equity IRR | E68: =E63 -> 0.3308821352 | I68: Tenor | K68: =E21 -> 19
D69: Debt to Cap | E69: =G45/G44 -> 0.79 | F69: =E30 -> Max Gear | H69: Tenor
G70: =E63 -> 0.3308821352 | H70: 7 | I70: 10 | J70: 15 | K70: 20 | L70: 25 | N70: =E30 -> Max Gear | O70: 7 | P70: 10 | Q70: 15 | R70: 20 | S70: 25
G71: 80 | H71: 0.105241841 | I71: 0.123571334 | J71: 0.1994388121 | K71: 0.2299064674 | L71: 0.2499628193 | N71: =G71 -> 80 | O71: DSCR | P71: DSCR | Q71: Max Gear | R71: Max Gear | S71: Max Gear
E72: EBITDA | G72: =G71-5 -> 75 | H72: 0.09536761578 | I72: 0.108725065 | J72: 0.1740672761 | K72: 0.2033136097 | L72: 0.2240096871 | N72: =N71-5 -> 75 | O72: DSCR | P72: DSCR | Q72: Max Gear | R72: Max Gear | S72: Max Gear
G73: =G72-5 -> 70 | H73: 0.08585565507 | I73: 0.09547738417 | J73: 0.135837901 | K73: 0.1767555617 | L73: 0.1977310495 | N73: =N72-5 -> 70 | O73: DSCR | P73: DSCR | Q73: DSCR | R73: Max Gear | S73: Max Gear
G74: 65 | H74: 0.07660176393 | I74: 0.08337113598 | J74: 0.1077636558 | K74: 0.1503480197 | L74: 0.171003116 | N74: 65 | O74: DSCR | P74: DSCR | Q74: DSCR | R74: Max Gear | S74: Max Gear
G75: 60 | H75: 0.06750931091 | I75: 0.07207631832 | J75: 0.08682696412 | K75: 0.1242214201 | L75: 0.1436250314 | N75: 60 | O75: DSCR | P75: DSCR | Q75: DSCR | R75: Max Gear | S75: Max Gear
G76: 55 | H76: 0.05848393089 | I76: 0.061339225 | J76: 0.06981461089 | K76: 0.09130338553 | L76: 0.1152617173 | N76: 55 | O76: DSCR | P76: DSCR | Q76: DSCR | R76: DSCR | S76: Max Gear
G77: 50 | H77: 0.0494279974 | I77: 0.05095057712 | J77: 0.05514648015 | K77: 0.06420158249 | L77: 0.08533722785 | N77: 50 | O77: DSCR | P77: DSCR | Q77: DSCR | R77: DSCR | S77: Max Gear
G78: 45 | H78: 0.04023399803 | I78: 0.04072304935 | J78: 0.04191780157 | K78: 0.04413840652 | L78: 0.04970380471 | N78: 45 | O78: DSCR | P78: DSCR | Q78: DSCR | R78: DSCR | S78: DSCR
G79: 40 | H79: 0.03077549602 | I79: 0.03047239472 | J79: 0.02953560204 | K79: 0.02762188276 | L79: 0.02297940334 | N79: 40 | O79: DSCR | P79: DSCR | Q79: DSCR | R79: DSCR | S79: DSCR
G80: 35 | H80: 0.02089333309 | I80: 0.01999743164 | J80: 0.01755183616 | K80: 0.01300756293 | L80: 0.002829272524 | N80: 35 | O80: DSCR | P80: DSCR | Q80: DSCR | R80: DSCR | S80: DSCR
D82: Method: | E82: =E30 -> Max Gear

Sheet Sheet3
